Portfolio,Expense Area,Cost Centre,Expense Type,Account Code,Amount,Supplier Name,SupplierId,Pay Date,Transaction No.,,VAT No.,Co. Reg. No.,VAT No.,Voucher Type,�,Trans Date
Environment and Public Realm,Section 106 Grounds Maintenance,PKS16,External Contractor & Operator,742,1461.24,Autopa Ltd,100046,07/06/2018,10260234,CS,GB196655022,,GB196655022,PI,1753.49,29/05/2018
Housing Revenue Account,Electrical maintenance,UMR10,R&M External Contractors,100,1456.56,AWM Electrical Contractors Ltd,100051,07/06/2018,10260117,CS,661675907,7430696,661675907,PN,1747.87,24/05/2018
Housing Revenue Account,Electrical maintenance,UMR10,R&M External Contractors,100,2762.5,AWM Electrical Contractors Ltd,100051,07/06/2018,10260118,CS,661675907,7430696,661675907,PN,5581.08,24/05/2018
Housing Revenue Account,Miscellaneous Unplanned Maintenance and Repair,UMR17,R&M External Contractors,100,95.38,AWM Electrical Contractors Ltd,100051,07/06/2018,10260118,CS,661675907,7430696,661675907,PN,5581.08,24/05/2018
Capital Housing Revenue Account,Fire Risk Prevention Works,HCE18,Capital Contract Payments,5000,1793.02,AWM Electrical Contractors Ltd,100051,07/06/2018,10260118,CS,661675907,7430696,661675907,PN,5581.08,24/05/2018
Housing Revenue Account,Electrical maintenance,UMR10,R&M External Contractors,100,652.77,AWM Electrical Contractors Ltd,100051,07/06/2018,10260194,CS,661675907,7430696,661675907,PN,970.78,25/05/2018
Housing Revenue Account,Miscellaneous Unplanned Maintenance and Repair,UMR17,R&M External Contractors,100,27.21,AWM Electrical Contractors Ltd,100051,07/06/2018,10260194,CS,661675907,7430696,661675907,PN,970.78,25/05/2018
Housing Revenue Account,Multi-Storey Flats,MSF00,Other Miscellaneous Expenses,444,129,AWM Electrical Contractors Ltd,100051,07/06/2018,10260194,CS,661675907,7430696,661675907,PN,970.78,25/05/2018
Housing Revenue Account,Electrical maintenance,UMR10,R&M External Contractors,100,723.58,AWM Electrical Contractors Ltd,100051,07/06/2018,10260262,CS,661675907,7430696,661675907,PN,868.3,31/05/2018
Housing Revenue Account,Repairs and Maintenance - Void works,UMR09,R&M External Contractors,100,954.87,AWM Electrical Contractors Ltd,100051,07/06/2018,10260263,CS,661675907,7430696,661675907,PN,1145.84,31/05/2018
Housing Revenue Account,Repairs and Maintenance - Void works,UMR09,R&M External Contractors,100,2495.54,AWM Electrical Contractors Ltd,100051,14/06/2018,10260594,CS,661675907,7430696,661675907,PN,2994.65,08/06/2018
Housing Revenue Account,Electrical maintenance,UMR10,R&M External Contractors,100,3191.89,AWM Electrical Contractors Ltd,100051,14/06/2018,10260595,CS,661675907,7430696,661675907,PN,3974.58,08/06/2018
Housing Revenue Account,Miscellaneous Unplanned Maintenance and Repair,UMR17,R&M External Contractors,100,120.26,AWM Electrical Contractors Ltd,100051,14/06/2018,10260595,CS,661675907,7430696,661675907,PN,3974.58,08/06/2018
Housing Revenue Account,Electrical maintenance,UMR10,R&M External Contractors,100,1912.59,AWM Electrical Contractors Ltd,100051,21/06/2018,10260596,CS,661675907,7430696,661675907,PN,3413.41,08/06/2018
Housing Revenue Account,Miscellaneous Unplanned Maintenance and Repair,UMR17,R&M External Contractors,100,869.55,AWM Electrical Contractors Ltd,100051,21/06/2018,10260596,CS,661675907,7430696,661675907,PN,3413.41,08/06/2018
Housing Revenue Account,Multi-Storey Flats,MSF00,Other Miscellaneous Expenses,444,62.37,AWM Electrical Contractors Ltd,100051,21/06/2018,10260596,CS,661675907,7430696,661675907,PN,3413.41,08/06/2018
Housing Revenue Account,Electrical maintenance,UMR10,R&M External Contractors,100,541.15,AWM Electrical Contractors Ltd,100051,28/06/2018,10260666,CS,661675907,7430696,661675907,PN,649.38,13/06/2018
Housing Revenue Account,Electrical maintenance,UMR10,R&M External Contractors,100,1305.63,AWM Electrical Contractors Ltd,100051,28/06/2018,10260781,CS,661675907,7430696,661675907,PN,1566.76,18/06/2018
Housing Revenue Account,Repairs and Maintenance - Void works,UMR09,R&M External Contractors,100,1754.66,AWM Electrical Contractors Ltd,100051,21/06/2018,10260848,CS,661675907,7430696,661675907,PN,2157.19,19/06/2018
Housing Revenue Account,Multi-Storey Flats,MSF00,Other Miscellaneous Expenses,444,43,AWM Electrical Contractors Ltd,100051,21/06/2018,10260848,CS,661675907,7430696,661675907,PN,2157.19,19/06/2018
Housing Revenue Account,Repairs and Maintenance - Void works,UMR09,R&M External Contractors,100,2479.28,AWM Electrical Contractors Ltd,100051,21/06/2018,10260850,CS,661675907,7430696,661675907,PN,3000.94,19/06/2018
Housing Revenue Account,Multi-Storey Flats,MSF00,Other Miscellaneous Expenses,444,21.5,AWM Electrical Contractors Ltd,100051,21/06/2018,10260850,CS,661675907,7430696,661675907,PN,3000.94,19/06/2018
Housing Revenue Account,Gas Heating Systems,UMR01,R&M External Contractors,100,21.5,AWM Electrical Contractors Ltd,100051,28/06/2018,10260932,CS,661675907,7430696,661675907,PN,1195.33,21/06/2018
Housing Revenue Account,Electrical maintenance,UMR10,R&M External Contractors,100,912.98,AWM Electrical Contractors Ltd,100051,28/06/2018,10260932,CS,661675907,7430696,661675907,PN,1195.33,21/06/2018
Housing Revenue Account,Miscellaneous Unplanned Maintenance and Repair,UMR17,R&M External Contractors,100,61.63,AWM Electrical Contractors Ltd,100051,28/06/2018,10260932,CS,661675907,7430696,661675907,PN,1195.33,21/06/2018
Capital Housing Revenue Account,Kitchen Modifications,HIK10,Capital Contract Payments,5000,7550.58,A C E Carpentry & Joinery Contractors Ltd,100085,07/06/2018,10260134,CS,729422428,4120783,729422428,PN,9060.7,24/05/2018
Capital Housing Revenue Account,Kitchen Modifications,HIK10,Capital Contract Payments,5000,7550.58,A C E Carpentry & Joinery Contractors Ltd,100085,07/06/2018,10260293,CS,729422428,4120783,729422428,PN,9060.7,31/05/2018
Capital Housing Revenue Account,Kitchen Modifications,HIK10,Capital Contract Payments,5000,7550.58,A C E Carpentry & Joinery Contractors Ltd,100085,14/06/2018,10260642,CS,729422428,4120783,729422428,PN,9060.7,11/06/2018
Capital Housing Revenue Account,Kitchen Modifications,HIK10,Capital Contract Payments,5000,751,A C E Carpentry & Joinery Contractors Ltd,100085,14/06/2018,10260643,CS,729422428,4120783,729422428,PN,901.2,11/06/2018
Corporate Resources,Council Tax and NNDR Collection,CTX01,External Legal Costs,741,102.59,Bristow & Sutor,100159,07/06/2018,10260358,TC,294694111,,294694111,PN,946.67,01/06/2018
Corporate Resources,Council Tax and NNDR Collection,CTX01,External Legal Costs,741,20.56,Bristow & Sutor,100159,28/06/2018,10260786,TC,294694111,,294694111,PN,803.48,18/06/2018
Communities and Homes,Universal Credit Support,CAS04,Other Agencies,734,1499.4,Benn Partnership Centre,100235,28/06/2018,10260459,TC,,,,PI,1499.4,05/06/2018
Environment and Public Realm,Domestic Waste Collection/Recycling,REF00,Vehicle Repair and Maintenance,200,1348,Charles Watts Engineering Ltd,100302,07/06/2018,10260427,CS,272707159,466266,272 7071 59,PN,2022,04/06/2018
Environment and Public Realm,Trade Waste Collection,WWC01,Vehicle Repair and Maintenance,200,337,Charles Watts Engineering Ltd,100302,07/06/2018,10260427,CS,272707159,466266,272 7071 59,PN,2022,04/06/2018
Housing Revenue Account,Miscellaneous Unplanned Maintenance and Repair,UMR17,R&M External Contractors,100,1295,Chillaire Service & Maintenance Ltd,100305,28/06/2018,10260728,TC,806802244,4622016,806802244,PN,1554,18/06/2018
Communities and Homes,Maintenance of Customer Services Systems,CIS21,Software Maintenance,374,18029.7,Capita Business Services Ltd,100403,14/06/2018,10260519,TC,618184140,,618184140,PN,21635.64,06/06/2018
Environment and Public Realm,Domestic Waste Collection/Recycling,REF00,External Contractor & Operator,742,603.12,Cannon Hygiene Ltd,100436,28/06/2018,10260458,TC,209918933,,209918933,PI,723.74,05/06/2018
Environment and Public Realm,Regulatory Services,REG00,Other Miscellaneous Expenses,444,2514,Heart Of England Co-operative Society Ltd,100479,21/06/2018,10260875,TC,328078938,,328078938,PN,2514,19/06/2018
Communities and Homes,ITC & Support Services,CIS10,Photocopying,354,5088.21,Canon (UK) Limited,100514,14/06/2018,10260623,TC,523797128,1264300,523797128,PN,6105.85,11/06/2018
Communities and Homes,ITC & Support Services,CIS10,Photocopying,354,3485.91,Canon (UK) Limited,100514,14/06/2018,10260624,TC,523797128,1264300,523797128,PN,4183.09,11/06/2018
Environment and Public Realm,Parks,PKS00,R&M External Contractors,100,1900,Chains & Lifting Tackle (Coventry) Ltd,100521,28/06/2018,10260538,TC,368236040,,368236040,PI,2280,06/06/2018
Environment and Public Realm,Domestic Waste Collection/Recycling,REF00,Vehicle Repair and Maintenance,200,488.83,Dennis Eagle Ltd,100559,07/06/2018,10260266,TC,272496827,,272 4968 27,PN,1856.26,31/05/2018
Environment and Public Realm,Household Green Waste Collections,REF06,Vehicle Repair and Maintenance,200,488.83,Dennis Eagle Ltd,100559,07/06/2018,10260266,TC,272496827,,272 4968 27,PN,1856.26,31/05/2018
Environment and Public Realm,Trade Waste Collection,WWC01,Vehicle Repair and Maintenance,200,569.22,Dennis Eagle Ltd,100559,07/06/2018,10260266,TC,272496827,,272 4968 27,PN,1856.26,31/05/2018
Environment and Public Realm,Domestic Waste Collection/Recycling,REF00,Vehicle Repair and Maintenance,200,769.72,Dennis Eagle Ltd,100559,28/06/2018,10260548,TC,272496827,,272 4968 27,PN,1031.11,07/06/2018
Environment and Public Realm,Garage,WVR00,Materials,303,89.54,Dennis Eagle Ltd,100559,28/06/2018,10260548,TC,272496827,,272 4968 27,PN,1031.11,07/06/2018
Environment and Public Realm,Domestic Waste Collection/Recycling,REF00,Vehicle Repair and Maintenance,200,997.13,Dennis Eagle Ltd,100559,28/06/2018,10260968,TC,272496827,,272 4968 27,PN,1505.24,21/06/2018
Environment and Public Realm,Trade Waste Collection,WWC01,Vehicle Repair and Maintenance,200,257.24,Dennis Eagle Ltd,100559,28/06/2018,10260968,TC,272496827,,272 4968 27,PN,1505.24,21/06/2018
Environment and Public Realm,Domestic Waste Collection/Recycling,REF00,Vehicle Repair and Maintenance,200,115.1,Dennis Eagle Ltd,100559,28/06/2018,10261007,TC,272496827,,272 4968 27,PN,1357.69,22/06/2018
Environment and Public Realm,Trade Waste Collection,WWC01,Vehicle Repair and Maintenance,200,1016.31,Dennis Eagle Ltd,100559,28/06/2018,10261007,TC,272496827,,272 4968 27,PN,1357.69,22/06/2018
Corporate Resources,Corporate Property R&M,CPA01,R&M External Contractors,100,1975,Dunchurch Services (Rugby) Ltd,100565,07/06/2018,10260474,CS,623535748,2693688,623535748,PN,2370,05/06/2018
Corporate Resources,Corporate Property R&M,CPA01,R&M External Contractors,100,644,Dunchurch Services (Rugby) Ltd,100565,21/06/2018,10260701,CS,623535748,2693688,623535748,PN,772.8,18/06/2018
Corporate Resources,Corporate Property R&M,CPA01,R&M External Contractors,100,610,Dunchurch Services (Rugby) Ltd,100565,28/06/2018,10260814,CS,623535748,2693688,623535748,PN,732,19/06/2018
Corporate Resources,Corporate Property Central Utilities,CPA02,Gas,131,940.09,ESPO,100641,28/06/2018,10260750,TC,705180561,,705180561,PN,1128.11,18/06/2018
Corporate Resources,Corporate Property Central Utilities,CPA02,Gas,131,905.34,ESPO,100641,28/06/2018,10260751,TC,705180561,,705180561,PN,1086.4,18/06/2018
Housing Revenue Account,Albert Square AP,AGP20,Gas,131,882.93,ESPO,100641,21/06/2018,10260753,TC,705180561,,705180561,PN,1059.52,18/06/2018
Housing Revenue Account,Lesley Souter House AP,AGP16,Gas,131,635.59,ESPO,100641,21/06/2018,10260754,TC,705180561,,705180561,PN,762.71,18/06/2018
Housing Revenue Account,Tanser Court AP,AGP17,Gas,131,614.99,ESPO,100641,21/06/2018,10260755,TC,705180561,,705180561,PN,737.99,18/06/2018
Environment and Public Realm,Crematorium,CRM00,Gas,131,1335.59,ESPO,100641,21/06/2018,10260775,TC,705180561,,705180561,PN,1602.71,18/06/2018
Housing Revenue Account,Miscellaneous Unplanned Maintenance and Repair,UMR17,R&M External Contractors,100,124,Nationwide Windows Ltd,100808,28/06/2018,10260824,CS,792405224,2025613,792405224,PN,3255.52,19/06/2018
Capital Housing Revenue Account,Housing Window Replacement,HWR00,Capital Contract Payments,5000,2588.93,Nationwide Windows Ltd,100808,28/06/2018,10260824,CS,792405224,2025613,792405224,PN,3255.52,19/06/2018
Environment and Public Realm,Parks,PKS00,Maintenance of Equipment,301,502.54,Playdale Playgrounds Ltd,100919,07/06/2018,10260337,CS,155625362,525615,155 6253 62,PI,603.05,31/05/2018
Corporate Resources,Corporate Property Management,CPM00,Asset Management Expenses,448,450,Godfrey-Payton Chartered Surveyors,100937,21/06/2018,10260734,TC,272440179,,272440179,PN,540,18/06/2018
Growth and Investment,Visitor Centre,VSC00,Purchases for Resale,305,720.05,Grays of Cambridge (Intl) Limited,100949,07/06/2018,10260225,TC,213436495,,213436495,PI,864.06,29/05/2018
Communities and Homes,ITC & Support Services,CIS10,New Equipment,300,436,IE Office Equipment Ltd,101114,21/06/2018,10260915,CS,661544339,,661544339,PI,523.2,20/06/2018
Communities and Homes,Central Business Support Services,CSS15,New Equipment,300,1332,IE Office Equipment Ltd,101114,28/06/2018,10260916,CS,661544339,,661544339,PI,1598.4,20/06/2018
Environment and Public Realm,Regulatory Services,REG00,Subscriptions,421,490,C.I.E.H,101121,28/06/2018,10261006,TC,,,,PN,588,22/06/2018
Environment and Public Realm,Street Cleansing General,STC00,External Contractor & Operator,742,741.44,Clews Recycling Limited,101213,14/06/2018,10260332,TC,747316619,,747316619,PN,1605.36,31/05/2018
Housing Revenue Account,Unplanned Maintenance and Repair,UMR00,External Contractor & Operator,742,596.36,Clews Recycling Limited,101213,14/06/2018,10260332,TC,747316619,,747316619,PN,1605.36,31/05/2018
Housing Revenue Account,Unplanned Maintenance and Repair,UMR00,External Contractor & Operator,742,1015.66,Clews Recycling Limited,101213,14/06/2018,10260491,TC,747316619,,747316619,PN,1218.79,05/06/2018
Environment and Public Realm,Street Furniture,HIG01,External Contractor & Operator,742,2049.4,Midland Signs (Leicester) Ltd,101295,21/06/2018,10260854,TC,399669755,1778323,399669755,PI,2459.28,19/06/2018
Communities and Homes,Maintenance of Customer Services Systems,CIS21,Software Maintenance,374,630,Ncc Services Limited,101374,07/06/2018,10260152,TC,732334556,2802141,732334556,PN,756,24/05/2018
Communities and Homes,Maintenance of Customer Services Systems,CIS21,Software Maintenance,374,975,Ncc Services Limited,101374,07/06/2018,10260229,TC,732334556,2802141,732334556,PN,1170,29/05/2018
Growth and Investment,Visitor Centre,VSC00,Events Tickets - Standard Rated,1404,797.98,National Express Ltd,101392,07/06/2018,10260359,TC,487038714,,487038714,PN,797.98,01/06/2018
Housing Revenue Account,Sheltered Housing,AGP00,Telephone Expenses,371,250.84,EE Ltd t/a Orange Personal Communications,101404,21/06/2018,10260742,TC,529221751,,529221751,PN,5777.03,18/06/2018
Environment and Public Realm,Crematorium,CRM00,Telephone Expenses,371,11.75,EE Ltd t/a Orange Personal Communications,101404,21/06/2018,10260742,TC,529221751,,529221751,PN,5777.03,18/06/2018
Housing Revenue Account,Supervision and Management General,MAN00,Telephone Expenses,371,154.66,EE Ltd t/a Orange Personal Communications,101404,21/06/2018,10260742,TC,529221751,,529221751,PN,5777.03,18/06/2018
Housing Revenue Account,Property Maintenance,MAN23,Telephone Expenses,371,116,EE Ltd t/a Orange Personal Communications,101404,21/06/2018,10260742,TC,529221751,,529221751,PN,5777.03,18/06/2018
Housing Revenue Account,Voids & Allocations Team,MAN24,Telephone Expenses,371,69,EE Ltd t/a Orange Personal Communications,101404,21/06/2018,10260742,TC,529221751,,529221751,PN,5777.03,18/06/2018
Housing Revenue Account,Multi-Storey Flats,MSF00,Telephone Expenses,371,11.75,EE Ltd t/a Orange Personal Communications,101404,21/06/2018,10260742,TC,529221751,,529221751,PN,5777.03,18/06/2018
Communities and Homes,Mobile telephones,TEL03,Telephone Expenses,371,3095.89,EE Ltd t/a Orange Personal Communications,101404,21/06/2018,10260742,TC,529221751,,529221751,PN,5777.03,18/06/2018
Housing Revenue Account,Unplanned Maintenance and Repair,UMR00,Telephone Expenses,371,1160.64,EE Ltd t/a Orange Personal Communications,101404,21/06/2018,10260742,TC,529221751,,529221751,PN,5777.03,18/06/2018
Housing Revenue Account,Repairs and Maintenance - Void works,UMR09,Telephone Expenses,371,11.75,EE Ltd t/a Orange Personal Communications,101404,21/06/2018,10260742,TC,529221751,,529221751,PN,5777.03,18/06/2018
Capital Housing Revenue Account,Disabled Adaptations,HCR01,Capital Contract Payments,5000,12320,Reeds Plumbing & Heating Contractors Ltd,101504,07/06/2018,10260395,CS,418584732,4468782,418 5847 32,PN,20634,01/06/2018
Capital Housing Revenue Account,Bathroom Modifications,HIS01,Capital Contract Payments,5000,4875,Reeds Plumbing & Heating Contractors Ltd,101504,07/06/2018,10260395,CS,418584732,4468782,418 5847 32,PN,20634,01/06/2018
Capital Housing Revenue Account,Biart Place - Capital,BIA00,Capital Compensation Payments,5010,1826.74,Rugby Borough Council,101516,07/06/2018,10260272,NT,,,,PN,1826.74,31/05/2018
Capital Housing Revenue Account,Biart Place - Capital,BIA00,Capital Compensation Payments,5010,2444.74,Rugby Borough Council,101516,07/06/2018,10260429,NT,,,,PN,2933.69,04/06/2018
Communities and Homes,CAST - Private Sector Leasing,CAS03,Council Tax,142,1780.03,Rugby Borough Council,101516,14/06/2018,10260646,NT,,,,PN,1780.03,12/06/2018
Communities and Homes,CAST - Private Sector Leasing,CAS03,Council Tax,142,1582.26,Rugby Borough Council,101516,14/06/2018,10260649,NT,,,,PN,1582.26,12/06/2018
Communities and Homes,CAST - Private Sector Leasing,CAS03,Council Tax,142,1384.47,Rugby Borough Council,101516,14/06/2018,10260658,NT,,,,PN,1384.47,13/06/2018
Communities and Homes,CAST - Private Sector Leasing,CAS03,Council Tax,142,1384.47,Rugby Borough Council,101516,21/06/2018,10260668,NT,,,,PN,1384.47,15/06/2018
Communities and Homes,CAST - Private Sector Leasing,CAS03,Council Tax,142,1384.47,Rugby Borough Council,101516,21/06/2018,10260669,NT,,,,PN,1384.47,15/06/2018
Communities and Homes,Biart Place - Capital,BIA00,Capital Compensation Payments,5010,834.81,Rugby Borough Council,101516,21/06/2018,10260687,NT,,,,PN,834.81,18/06/2018
Communities and Homes,Biart Place - Capital,BIA00,Capital Compensation Payments,5010,1232.62,Rugby Borough Council,101516,28/06/2018,10260939,NT,,,,PN,1232.62,21/06/2018
Environment and Public Realm,Domestic Waste Collection/Recycling,REF00,Vehicle Repair and Maintenance,200,465,Rugby Mobile Windscreens,101520,28/06/2018,10260966,TC,307407185,,307407185,PN,558,21/06/2018
Outside portfolio expenditure,User Balance Sheet Cost Centre,BSU,Revenue Section Agreements,9865,3223.23,Ryton On Dunsmore Parish Council,101522,21/06/2018,10255788,NT,,,,PN,3223.23,18/01/2018
Outside portfolio expenditure,User Balance Sheet Cost Centre,BSU,Revenue Section Agreements,9865,871.5,Ryton On Dunsmore Parish Council,101522,28/06/2018,10261049,NT,,,,PN,871.5,25/06/2018
Growth and Investment,Art Gallery and Museum,AGM00,Postage & Distribution,370,7.73,Royal Mail,101554,07/06/2018,10260002,TC,,,,PN,2193.32,21/05/2018
Growth and Investment,Building Control Services,BCS00,Postage & Distribution,370,1.38,Royal Mail,101554,07/06/2018,10260002,TC,,,,PN,2193.32,21/05/2018
Communities and Homes,Community Advice & Support Team,CAS00,Postage & Distribution,370,179.04,Royal Mail,101554,07/06/2018,10260002,TC,,,,PN,2193.32,21/05/2018
Communities and Homes,Central Business Support Services,CSS15,Postage & Distribution,370,232.38,Royal Mail,101554,07/06/2018,10260002,TC,,,,PN,2193.32,21/05/2018
Corporate Resources,Council Tax and NNDR Collection,CTX01,Postage & Distribution,370,719.13,Royal Mail,101554,07/06/2018,10260002,TC,,,,PN,2193.32,21/05/2018
Executive Director Office,Electoral Registration,ERG00,Postage & Distribution,370,221.79,Royal Mail,101554,07/06/2018,10260002,TC,,,,PN,2193.32,21/05/2018
Housing Revenue Account,Supervision and Management General,MAN00,Postage & Distribution,370,135.63,Royal Mail,101554,07/06/2018,10260002,TC,,,,PN,2193.32,21/05/2018
Growth and Investment,Planning General/Income,PLN00,Postage & Distribution,370,102.36,Royal Mail,101554,07/06/2018,10260002,TC,,,,PN,2193.32,21/05/2018
Environment and Public Realm,Domestic Waste Collection/Recycling,REF00,Postage & Distribution,370,1.6,Royal Mail,101554,07/06/2018,10260002,TC,,,,PN,2193.32,21/05/2018
Environment and Public Realm,Household Green Waste Collections,REF06,Postage & Distribution,370,225.93,Royal Mail,101554,07/06/2018,10260002,TC,,,,PN,2193.32,21/05/2018
Housing Revenue Account,Unplanned Maintenance and Repair,UMR00,Postage & Distribution,370,0.8,Royal Mail,101554,07/06/2018,10260002,TC,,,,PN,2193.32,21/05/2018
Growth and Investment,Art Gallery and Museum,AGM00,Postage & Distribution,370,5.32,Royal Mail,101554,14/06/2018,10260215,TC,,,,PN,1515.02,29/05/2018
Growth and Investment,Building Control Services,BCS00,Postage & Distribution,370,1.1,Royal Mail,101554,14/06/2018,10260215,TC,,,,PN,1515.02,29/05/2018
Communities and Homes,Community Advice & Support Team,CAS00,Postage & Distribution,370,137.21,Royal Mail,101554,14/06/2018,10260215,TC,,,,PN,1515.02,29/05/2018
Communities and Homes,Central Business Support Services,CSS15,Postage & Distribution,370,209.27,Royal Mail,101554,14/06/2018,10260215,TC,,,,PN,1515.02,29/05/2018
Corporate Resources,Council Tax and NNDR Collection,CTX01,Postage & Distribution,370,433.27,Royal Mail,101554,14/06/2018,10260215,TC,,,,PN,1515.02,29/05/2018
Executive Director Office,Electoral Registration,ERG00,Postage & Distribution,370,211.62,Royal Mail,101554,14/06/2018,10260215,TC,,,,PN,1515.02,29/05/2018
Housing Revenue Account,Supervision and Management General,MAN00,Postage & Distribution,370,42.32,Royal Mail,101554,14/06/2018,10260215,TC,,,,PN,1515.02,29/05/2018
Growth and Investment,Planning General/Income,PLN00,Postage & Distribution,370,72.8,Royal Mail,101554,14/06/2018,10260215,TC,,,,PN,1515.02,29/05/2018
Environment and Public Realm,Domestic Waste Collection/Recycling,REF00,Postage & Distribution,370,15.21,Royal Mail,101554,14/06/2018,10260215,TC,,,,PN,1515.02,29/05/2018
Environment and Public Realm,Household Green Waste Collections,REF06,Postage & Distribution,370,133.78,Royal Mail,101554,14/06/2018,10260215,TC,,,,PN,1515.02,29/05/2018
Growth and Investment,Visitor Centre,VSC00,Postage & Distribution,370,1.45,Royal Mail,101554,14/06/2018,10260215,TC,,,,PN,1515.02,29/05/2018
Growth and Investment,Art Gallery and Museum,AGM00,Postage & Distribution,370,43.34,Royal Mail,101554,28/06/2018,10260791,TC,,,,PN,3035.27,19/06/2018
Growth and Investment,Building Control Services,BCS00,Postage & Distribution,370,0.98,Royal Mail,101554,28/06/2018,10260791,TC,,,,PN,3035.27,19/06/2018
Communities and Homes,Community Advice & Support Team,CAS00,Postage & Distribution,370,347.99,Royal Mail,101554,28/06/2018,10260791,TC,,,,PN,3035.27,19/06/2018
Communities and Homes,Central Business Support Services,CSS15,Postage & Distribution,370,534.69,Royal Mail,101554,28/06/2018,10260791,TC,,,,PN,3035.27,19/06/2018
Corporate Resources,Council Tax and NNDR Collection,CTX01,Postage & Distribution,370,1025.71,Royal Mail,101554,28/06/2018,10260791,TC,,,,PN,3035.27,19/06/2018
Executive Director Office,Electoral Registration,ERG00,Postage & Distribution,370,96.25,Royal Mail,101554,28/06/2018,10260791,TC,,,,PN,3035.27,19/06/2018
Housing Revenue Account,Supervision and Management General,MAN00,Postage & Distribution,370,79.94,Royal Mail,101554,28/06/2018,10260791,TC,,,,PN,3035.27,19/06/2018
Growth and Investment,Planning General/Income,PLN00,Postage & Distribution,370,171.24,Royal Mail,101554,28/06/2018,10260791,TC,,,,PN,3035.27,19/06/2018
Environment and Public Realm,Domestic Waste Collection/Recycling,REF00,Postage & Distribution,370,5.34,Royal Mail,101554,28/06/2018,10260791,TC,,,,PN,3035.27,19/06/2018
Environment and Public Realm,Household Green Waste Collections,REF06,Postage & Distribution,370,218.4,Royal Mail,101554,28/06/2018,10260791,TC,,,,PN,3035.27,19/06/2018
Housing Revenue Account,Unplanned Maintenance and Repair,UMR00,Postage & Distribution,370,0.4,Royal Mail,101554,28/06/2018,10260791,TC,,,,PN,3035.27,19/06/2018
Growth and Investment,Visitor Centre,VSC00,Postage & Distribution,370,6.18,Royal Mail,101554,28/06/2018,10260791,TC,,,,PN,3035.27,19/06/2018
Growth and Investment,Art Gallery and Museum,AGM00,Postage & Distribution,370,0.8,Royal Mail,101554,28/06/2018,10260794,TC,,,,PN,1364.97,19/06/2018
Growth and Investment,Building Control Services,BCS00,Postage & Distribution,370,0.58,Royal Mail,101554,28/06/2018,10260794,TC,,,,PN,1364.97,19/06/2018
Communities and Homes,Community Advice & Support Team,CAS00,Postage & Distribution,370,226.06,Royal Mail,101554,28/06/2018,10260794,TC,,,,PN,1364.97,19/06/2018
Communities and Homes,Central Business Support Services,CSS15,Postage & Distribution,370,162.81,Royal Mail,101554,28/06/2018,10260794,TC,,,,PN,1364.97,19/06/2018
Corporate Resources,Council Tax and NNDR Collection,CTX01,Postage & Distribution,370,227.62,Royal Mail,101554,28/06/2018,10260794,TC,,,,PN,1364.97,19/06/2018
Executive Director Office,Electoral Registration,ERG00,Postage & Distribution,370,61.26,Royal Mail,101554,28/06/2018,10260794,TC,,,,PN,1364.97,19/06/2018
Housing Revenue Account,Supervision and Management General,MAN00,Postage & Distribution,370,129.58,Royal Mail,101554,28/06/2018,10260794,TC,,,,PN,1364.97,19/06/2018
Growth and Investment,Planning General/Income,PLN00,Postage & Distribution,370,167.83,Royal Mail,101554,28/06/2018,10260794,TC,,,,PN,1364.97,19/06/2018
Environment and Public Realm,Domestic Waste Collection/Recycling,REF00,Postage & Distribution,370,4.1,Royal Mail,101554,28/06/2018,10260794,TC,,,,PN,1364.97,19/06/2018
Environment and Public Realm,Household Green Waste Collections,REF06,Postage & Distribution,370,122.2,Royal Mail,101554,28/06/2018,10260794,TC,,,,PN,1364.97,19/06/2018
Growth and Investment,Visitor Centre,VSC00,Postage & Distribution,370,35.38,Royal Mail,101554,28/06/2018,10260794,TC,,,,PN,1364.97,19/06/2018
Housing Revenue Account,Lesley Souter House AP,AGP16,Water Services,143,558.85,Water Plus,101610,21/06/2018,10260672,TC,,,,PN,558.85,15/06/2018
Corporate Resources,Corporate Property Central Utilities,CPA02,Water Services,143,718.7,Water Plus,101610,28/06/2018,10260683,TC,,,,PN,718.7,18/06/2018
Environment and Public Realm,Grass Cutting- Parishes,PKS13,External Contractor & Operator,742,2068,Shilton & Barnacle Parish Council,101613,07/06/2018,10260270,NT,,,,PN,2068,31/05/2018
Capital Communities and Homes,CCTV for Reception Area,RTV00,Capital Contract Payments,5000,3491,Secom Plc,101671,28/06/2018,10261068,TC,445838322,2585807,445838322,PI,4189.2,25/06/2018
Environment and Public Realm,Grass Cutting- Parishes,PKS13,External Contractor & Operator,742,511,Thurlaston Parish Council,101726,07/06/2018,10257569,TC,,,,PN,511,08/03/2018
Environment and Public Realm,Domestic Waste Collection/Recycling,REF00,Tyres,205,1129.52,HI-Q Motorway,101736,28/06/2018,10260745,TC,100159429,,100159429,PN,1838.22,18/06/2018
Environment and Public Realm,Street Cleansing General,STC00,Tyres,205,187,HI-Q Motorway,101736,28/06/2018,10260745,TC,100159429,,100159429,PN,1838.22,18/06/2018
Environment and Public Realm,Trade Waste Collection,WWC01,Tyres,205,215.33,HI-Q Motorway,101736,28/06/2018,10260745,TC,100159429,,100159429,PN,1838.22,18/06/2018
Environment and Public Realm,Domestic Waste Collection/Recycling,REF00,Tyres,205,727.37,HI-Q Motorway,101736,28/06/2018,10260890,TC,100159429,,100159429,PN,1001.24,20/06/2018
Environment and Public Realm,Trade Waste Collection,WWC01,Tyres,205,107,HI-Q Motorway,101736,28/06/2018,10260890,TC,100159429,,100159429,PN,1001.24,20/06/2018
Environment and Public Realm,Grounds Maintenance,PKS20,New Equipment,300,966,Tudor Environmental,101743,28/06/2018,10260636,TC,181621322,8693251,181621322,PN,1159.2,11/06/2018
Environment and Public Realm,Garage,WVR00,Materials,303,742.03,Terberg Matec UK,101761,07/06/2018,10260171,TC,560878510,,560 8785 10,PN,890.43,25/05/2018
Environment and Public Realm,Grass Cutting- Parishes,PKS13,External Contractor & Operator,742,4875,Wolston Parish Council,101852,07/06/2018,10259266,TC,,,,PN,4875,30/04/2018
Environment and Public Realm,Grass Cutting- Parishes,PKS13,External Contractor & Operator,742,1807,Wolvey Parish Council,101853,07/06/2018,10260274,TC,,,,PN,1807,31/05/2018
Growth and Investment,Economic Development General,ECD00,Borough Local Plan,452,12365,Warwickshire Wildlife Trust,101860,28/06/2018,10260338,TC,670318740,585247,670318740,PI,12365,31/05/2018
Environment and Public Realm,Parks,PKS00,External Contractor & Operator,742,500,Warwickshire Wildlife Trust (Rugby Area Group),101864,21/06/2018,10260698,TC,,,,PN,500,18/06/2018
Housing Revenue Account,Unplanned Maintenance and Repair,UMR00,Employee wellbeing/Other employee expenses,21,575,West Midlands Employers,101880,14/06/2018,10260645,TC,GB729635111,,GB729635111,PN,690,11/06/2018
Growth and Investment,Economic Development General,ECD00,Payments to Other Local Authorities,710,800,Warwickshire County Council,101893,14/06/2018,10256097,TC,272426659,,272426659,PN,960,26/01/2018
Housing Revenue Account,Gas Heating Systems,UMR01,R&M External Contractors,100,194.55,Adroit Services Ltd,101939,28/06/2018,10260723,CS,812650159,4729393,812650159,PN,528.76,18/06/2018
Housing Revenue Account,Repairs and Maintenance - Void works,UMR09,R&M External Contractors,100,246.08,Adroit Services Ltd,101939,28/06/2018,10260723,CS,812650159,4729393,812650159,PN,528.76,18/06/2018
Environment and Public Realm,Street Furniture,LEI22,Capital Contract Payments,5000,3757,Furnitubes International Ltd,102084,21/06/2018,10260869,TC,299432317,1331689,299432317,PI,4508.4,19/06/2018
Corporate Resources,General Financial Services,GFS00,Debt Management Expenses,751,6008.22,Sterling International Brokers Ltd,108141,14/06/2018,10260497,TC,500248105,2773693,500248105,PN,6008.22,05/06/2018
Environment and Public Realm,Street Cleansing General,STC00,Vehicle Repair and Maintenance,200,1351.07,Scarab Sweepers Ltd,108252,07/06/2018,10260477,TC,374500268,1823459,374500268,PN,1621.28,05/06/2018
Environment and Public Realm,Crematorium,CRM00,Medical Referees Fees,413,1498.5,Dunchurch Surgery,108687,07/06/2018,10260501,TC,,,,PN,1498.5,05/06/2018
Environment and Public Realm,Crematorium,CRM00,Medical Referees Fees,413,1591,Dunchurch Surgery,108687,07/06/2018,10260502,TC,,,,PN,1591,05/06/2018
Environment and Public Realm,Crematorium,CRM00,Payments to Other Local Authorities,710,95660.48,Daventry District Council,108940,28/06/2018,10260930,TC,121493004,,121493004,PN,95660.48,21/06/2018
Communities and Homes,Woodside Park,TVR00,Other Agencies,734,890,Environment Agency,109492,21/06/2018,10260583,TC,662490134,,662490134,PN,890,08/06/2018
Environment and Public Realm,Garage,WVR00,Materials,303,36748.7,Watson Petroleum,110361,28/06/2018,10260987,TC,195046059,,195046059,PI,44098.44,22/06/2018
Environment and Public Realm,Garage,WVR00,Materials,303,36956.13,Watson Petroleum,110361,28/06/2018,10261014,TC,195046059,,195046059,PI,44347.36,22/06/2018
Corporate Resources,Corporate Property R&M,CPA01,R&M External Contractors,100,522.48,Croxford Electrical Ltd,110451,21/06/2018,10260704,CS,307440876,7751876,307 4408 76,PN,626.98,18/06/2018
Corporate Resources,Corporate Property R&M,CPA01,R&M External Contractors,100,522.23,Croxford Electrical Ltd,110451,21/06/2018,10260705,CS,307440876,7751876,307 4408 76,PN,626.68,18/06/2018
Corporate Resources,Corporate Property R&M,CPA01,R&M External Contractors,100,1507.76,Croxford Electrical Ltd,110451,21/06/2018,10260714,CS,307440876,7751876,307 4408 76,PN,1809.31,18/06/2018
Growth and Investment,Building Control Services,BCS00,Payments to Other Local Authorities,710,18033.22,Warwick District Council,111228,07/06/2018,10260071,TC,273428941,,273 4289 41,PN,18033.22,23/05/2018
Communities and Homes,Maintenance of Customer Services Systems,CIS21,Software Maintenance,374,1117.58,Civica UK Ltd,112724,28/06/2018,10260727,TC,391171065,1909454,391171065,PN,1341.1,18/06/2018
Communities and Homes,Maintenance of Customer Services Systems,CIS21,Software Maintenance,374,462.41,Civica UK Ltd,112724,28/06/2018,10260907,TC,391171065,1909454,391171065,PN,554.89,20/06/2018
Communities and Homes,Maintenance of Customer Services Systems,CIS21,Software Maintenance,374,1360,Civica UK Ltd,112724,28/06/2018,10261069,TC,391171065,1909454,391171065,PI,1632,25/06/2018
Environment and Public Realm,Crematorium,CRM00,Purchases for Resale,305,590,Teleshore (UK) Ltd,112868,28/06/2018,10260802,TC,655748006,,655 7480 06,PN,708,19/06/2018
Corporate Resources,Human Resources Centralised Services,RES31,Training fees,11,1309.15,Nelson Training,120218,14/06/2018,10260580,TC,781446904,,781446904,PN,1570.98,08/06/2018
Communities and Homes,Maintenance of Customer Services Systems,CIS21,Software Maintenance,374,1200.89,Northgate Public Services (UK)  Ltd,121606,28/06/2018,10260972,TC,207588545,968498,207588545,PN,1441.07,21/06/2018
Capital Communities and Homes,ICT refresh programme - Infrastructure,CMP01,IT Capital Expenditure,5025,5950,Northgate Public Services (UK)  Ltd,121606,28/06/2018,10261053,TC,207588545,968498,207588545,PI,7140,25/06/2018
Housing Revenue Account,Maintenance of Open Spaces,MOS00,External Contractor & Operator,742,1081.55,Brinklow Quarry Ltd,122921,07/06/2018,10260423,TC,273163073,6765411,273163073,PN,1297.86,04/06/2018
Growth and Investment,On Track,LSD04,Uniforms,341,538,A Blair Sportswear,124770,14/06/2018,10260554,TC,985942066,7133621,985942066,PN,645.6,07/06/2018
Environment and Public Realm,Domestic Waste Collection/Recycling,REF00,Training fees,11,712,J Coates HGV Services Ltd,125604,28/06/2018,10260856,TC,113896949,,113896949,PI,831.4,19/06/2018
Environment and Public Realm,Street Cleansing General,STC00,Training fees,11,712,J Coates HGV Services Ltd,125604,28/06/2018,10260857,TC,113896949,,113896949,PI,831.4,19/06/2018
Environment and Public Realm,Garage,WVR00,Training fees,11,1110,J Coates HGV Services Ltd,125604,28/06/2018,10260859,TC,113896949,,113896949,PI,1309,19/06/2018
Housing Revenue Account,Unplanned Maintenance and Repair,UMR00,External Contractor & Operator,742,691.25,M P Hudson & Son,129334,28/06/2018,10261096,CS,770861806,,770861806,PN,691.25,27/06/2018
Environment and Public Realm,Grounds Maintenance,PKS20,External Contractor & Operator,742,1650,Complete Weed Control,129556,07/06/2018,10260305,TC,389237311,,389237311,PI,1980,31/05/2018
Communities and Homes,Central Business Support Services,CSS15,Stationery Supplies,350,545.88,Lyreco,129956,07/06/2018,10260374,TC,927265703,,927265703,PI,655.06,01/06/2018
Capital Housing Revenue Account,Heating Upgrades,HIM01,Capital Contract Payments,5000,630,Cadent Gas Ltd,130213,28/06/2018,10260817,TC,243133345,2006000,243133345,PN,630,19/06/2018
Corporate Resources,Corporate Property R&M,CPA01,R&M External Contractors,100,690,RGI Surveys,130446,28/06/2018,10260929,TC,485786578,2329580,485786578,PN,828,21/06/2018
Growth and Investment,Visitor Centre,VSC00,Publicity & Marketing,377,425,Beau Business Media Limited,130805,28/06/2018,10260871,TC,696131223,3550972,696131223,PI,510,19/06/2018
Environment and Public Realm,Parks,PKS00,External Contractor & Operator,742,5735,I D Welding & Fabrications,131407,07/06/2018,10260303,CS,687567859,,687567859,PI,6882,31/05/2018
Environment and Public Realm,Car Parks General,CPK01,Cash Collection,744,953.52,Jade Security Services Ltd,131711,07/06/2018,10260495,TC,642505654,,642505654,PN,1144.22,05/06/2018
Communities and Homes,CAST - Bed & Breakfast,CAS01,Bed and Breakfast Temporary Accommodation,146,966,Personal Redacted Data,132033,14/06/2018,10260591,TC,,,,PN,966,08/06/2018
Communities and Homes,CAST - Bed & Breakfast,CAS01,Bed and Breakfast Temporary Accommodation,146,585,Personal Redacted Data,132033,14/06/2018,10260648,TC,,,,PN,585,12/06/2018
Housing Revenue Account,Repairs and Maintenance - Void works,UMR09,R&M External Contractors,100,80,RF Digital Ltd,133161,28/06/2018,10260825,TC,887307093,,887307093,PN,978,19/06/2018
Housing Revenue Account,Miscellaneous Unplanned Maintenance and Repair,UMR17,R&M External Contractors,100,735,RF Digital Ltd,133161,28/06/2018,10260825,TC,887307093,,887307093,PN,978,19/06/2018
Growth and Investment,Town Centre CCTV and Management,TVM00,Other Agencies,734,21460.59,Rugby First Ltd - BID,133176,21/06/2018,10260581,TC,874675571,,874675571,PN,25752.71,08/06/2018
Housing Revenue Account,Fire Alarm maintenance,UMR13,R&M External Contractors,100,7801.78,Sunfish Services Ltd,133886,14/06/2018,10260560,CS,845393893,,845393893,PN,12872.44,07/06/2018
Housing Revenue Account,Miscellaneous Unplanned Maintenance and Repair,UMR17,R&M External Contractors,100,2925.25,Sunfish Services Ltd,133886,14/06/2018,10260560,CS,845393893,,845393893,PN,12872.44,07/06/2018
Outside portfolio expenditure,User Balance Sheet Cost Centre,BSU,Revenue Section Agreements,9865,102371.91,Cawston Parish Council,136322,28/06/2018,10261072,NT,,,,PN,102371.91,25/06/2018
Environment and Public Realm,Domestic Waste Collection/Recycling,REF00,Vehicle Repair and Maintenance,200,2024.36,Farid Hillend Engineering Ltd,137390,07/06/2018,10260178,TC,,,,PN,2429.23,25/05/2018
Environment and Public Realm,Domestic Waste Collection/Recycling,REF00,Vehicle Repair and Maintenance,200,1283.3,Farid Hillend Engineering Ltd,137390,07/06/2018,10260230,TC,,,,PN,1539.96,29/05/2018
Communities and Homes,Universal Credit Support,CAS04,Other Agencies,734,1134,Bedworth Rugby & Nuneaton Citizens Advice Bureau,139552,28/06/2018,10259964,TC,,,,PI,1360.8,18/05/2018
Capital Communities and Homes,Payroll/HR scheme,CMP14,IT Capital Expenditure,5025,1084.9,MHR International UK Ltd,140463,14/06/2018,10260158,TC,705850636,,705850636,PI,1301.88,24/05/2018
Capital Communities and Homes,Payroll/HR scheme,CMP14,IT Capital Expenditure,5025,509.5,MHR International UK Ltd,140463,21/06/2018,10260192,TC,705850636,,705850636,PI,611.4,25/05/2018
Capital Communities and Homes,Payroll/HR scheme,CMP14,IT Capital Expenditure,5025,1019,MHR International UK Ltd,140463,21/06/2018,10260330,TC,705850636,,705850636,PN,1222.8,31/05/2018
Capital Communities and Homes,Payroll/HR scheme,CMP14,IT Capital Expenditure,5025,494.5,MHR International UK Ltd,140463,21/06/2018,10260826,TC,705850636,,705850636,PN,593.4,19/06/2018
Housing Revenue Account,Multi-Storey Flats,MSF00,External Contractor & Operator,742,34816.32,StoneWall Security Ltd,140775,07/06/2018,10260481,TC,937387578,6587546,937387578,PN,41779.58,05/06/2018
Environment and Public Realm,Car Parks General,CPK01,External Contractor & Operator,742,641.7,StoneWall Security Ltd,140775,07/06/2018,10260482,TC,937387578,6587546,937387578,PN,770.04,05/06/2018
Housing Revenue Account,Multi-Storey Flats,MSF00,External Contractor & Operator,742,52224.48,StoneWall Security Ltd,140775,07/06/2018,10260483,TC,937387578,6587546,937387578,PN,62669.38,05/06/2018
Environment and Public Realm,Car Parks General,CPK01,External Contractor & Operator,742,401.5,StoneWall Security Ltd,140775,07/06/2018,10260484,TC,937387578,6587546,937387578,PN,1445.4,05/06/2018
Environment and Public Realm,Parks,PKS00,External Contractor & Operator,742,803,StoneWall Security Ltd,140775,07/06/2018,10260484,TC,937387578,6587546,937387578,PN,1445.4,05/06/2018
Environment and Public Realm,Crematorium,CRM00,Telephone Expenses,371,538,Zen Internet Ltd,141612,07/06/2018,10260411,TC,686049501,3101568,686049501,PN,645.6,04/06/2018
Communities and Homes,Broadband & internet,TEL01,Telephone Expenses,371,970.25,Zen Internet Ltd,141612,28/06/2018,10261009,TC,686049501,3101568,686049501,PN,1164.3,22/06/2018
Environment and Public Realm,Street Cleansing General,STC00,Vehicle Repair and Maintenance,200,722.89,Johnston Sweepers Ltd,141632,28/06/2018,10261062,TC,209523670,,209523670,PN,867.47,25/06/2018
Environment and Public Realm,Domestic Waste Collection/Recycling,REF00,External Contractor & Operator,742,39905.27,Pure Recycling (Warwick) Limited,141883,28/06/2018,10260476,TC,922427047,,922427047,PN,47886.32,05/06/2018
Housing Revenue Account,Gas Heating Systems,UMR01,R&M External Contractors,100,1560,Certsure LLP,142076,28/06/2018,10260779,TC,799123488,2513162,799123488,PN,1872,18/06/2018
Housing Revenue Account,Gas Heating Systems,UMR01,R&M External Contractors,100,780,Certsure LLP,142076,28/06/2018,10261000,TC,799123488,2513162,799123488,PN,936,22/06/2018
Housing Revenue Account,Estate Management,MAN22,Agency Staff,3,765.22,Comensura Limited,142471,07/06/2018,10260072,TC,755321145,4085767,755 3211 45,PN,10851.46,23/05/2018
Environment and Public Realm,Grounds Maintenance,PKS20,Agency Staff,3,1073.26,Comensura Limited,142471,07/06/2018,10260072,TC,755321145,4085767,755 3211 45,PN,10851.46,23/05/2018
Growth and Investment,Planning General/Income,PLN00,Agency Staff,3,1503.36,Comensura Limited,142471,07/06/2018,10260072,TC,755321145,4085767,755 3211 45,PN,10851.46,23/05/2018
Growth and Investment,Gypsy and Traveller Enforcement,PLN10,Agency Staff,3,540.76,Comensura Limited,142471,07/06/2018,10260072,TC,755321145,4085767,755 3211 45,PN,10851.46,23/05/2018
Environment and Public Realm,Domestic Waste Collection/Recycling,REF00,Agency Staff,3,5160.42,Comensura Limited,142471,07/06/2018,10260072,TC,755321145,4085767,755 3211 45,PN,10851.46,23/05/2018
Housing Revenue Account,Estate Management,MAN22,Agency Staff,3,711.82,Comensura Limited,142471,14/06/2018,10260239,TC,755321145,4085767,755 3211 45,PN,9011.44,30/05/2018
Environment and Public Realm,Grounds Maintenance,PKS20,Agency Staff,3,666.88,Comensura Limited,142471,14/06/2018,10260239,TC,755321145,4085767,755 3211 45,PN,9011.44,30/05/2018
Environment and Public Realm,Domestic Waste Collection/Recycling,REF00,Agency Staff,3,5684.38,Comensura Limited,142471,14/06/2018,10260239,TC,755321145,4085767,755 3211 45,PN,9011.44,30/05/2018
Environment and Public Realm,Street Cleansing General,STC00,Agency Staff,3,446.57,Comensura Limited,142471,14/06/2018,10260239,TC,755321145,4085767,755 3211 45,PN,9011.44,30/05/2018
Environment and Public Realm,Grounds Maintenance,PKS20,Agency Staff,3,822.04,Comensura Limited,142471,21/06/2018,10260506,TC,755321145,4085767,755 3211 45,PN,13669.99,06/06/2018
Growth and Investment,Planning General/Income,PLN00,Agency Staff,3,1506.06,Comensura Limited,142471,21/06/2018,10260506,TC,755321145,4085767,755 3211 45,PN,13669.99,06/06/2018
Growth and Investment,Gypsy and Traveller Enforcement,PLN10,Agency Staff,3,487.9,Comensura Limited,142471,21/06/2018,10260506,TC,755321145,4085767,755 3211 45,PN,13669.99,06/06/2018
Environment and Public Realm,Domestic Waste Collection/Recycling,REF00,Agency Staff,3,7763.34,Comensura Limited,142471,21/06/2018,10260506,TC,755321145,4085767,755 3211 45,PN,13669.99,06/06/2018
Environment and Public Realm,Street Cleansing General,STC00,Agency Staff,3,812.4,Comensura Limited,142471,21/06/2018,10260506,TC,755321145,4085767,755 3211 45,PN,13669.99,06/06/2018
Housing Revenue Account,Estate Management,MAN22,Agency Staff,3,1421.39,Comensura Limited,142471,21/06/2018,10260681,TC,755321145,4085767,755 3211 45,PN,11383.3,15/06/2018
Environment and Public Realm,Grounds Maintenance,PKS20,Agency Staff,3,1484.08,Comensura Limited,142471,21/06/2018,10260681,TC,755321145,4085767,755 3211 45,PN,11383.3,15/06/2018
Environment and Public Realm,Domestic Waste Collection/Recycling,REF00,Agency Staff,3,5973.52,Comensura Limited,142471,21/06/2018,10260681,TC,755321145,4085767,755 3211 45,PN,11383.3,15/06/2018
Environment and Public Realm,Street Cleansing General,STC00,Agency Staff,3,607.22,Comensura Limited,142471,21/06/2018,10260681,TC,755321145,4085767,755 3211 45,PN,11383.3,15/06/2018
Housing Revenue Account,Estate Management,MAN22,Agency Staff,3,1455.17,Comensura Limited,142471,28/06/2018,10261094,TC,755321145,4085767,755 3211 45,PN,13533.8,27/06/2018
Environment and Public Realm,Grounds Maintenance,PKS20,Agency Staff,3,1223.79,Comensura Limited,142471,28/06/2018,10261094,TC,755321145,4085767,755 3211 45,PN,13533.8,27/06/2018
Environment and Public Realm,Domestic Waste Collection/Recycling,REF00,Agency Staff,3,6780.39,Comensura Limited,142471,28/06/2018,10261094,TC,755321145,4085767,755 3211 45,PN,13533.8,27/06/2018
Environment and Public Realm,Street Cleansing General,STC00,Agency Staff,3,1048.45,Comensura Limited,142471,28/06/2018,10261094,TC,755321145,4085767,755 3211 45,PN,13533.8,27/06/2018
Housing Revenue Account,Unplanned Maintenance and Repair,UMR00,Agency Staff,3,770.37,Comensura Limited,142471,28/06/2018,10261094,TC,755321145,4085767,755 3211 45,PN,13533.8,27/06/2018
Environment and Public Realm,Violence,CAD01,Development Activities,450,730,The Professional Promotion Co Ltd,144136,28/06/2018,10260866,TC,687669750,3289985,687669750,PI,876,19/06/2018
Housing Revenue Account,Supervision and Management General,MAN00,Subscriptions,421,2500,Association of Retained Council Housing Ltd,145015,21/06/2018,10260729,TC,133357330,,133357330,PN,3000,18/06/2018
Environment and Public Realm,Parks,PKS00,Maintenance of Equipment,301,1850,PHS Ltd T/A Matta Products (UK),145081,07/06/2018,10259210,CS,542951438,770813,542951438,PI,2460,25/04/2018
Environment and Public Realm,Section 106 Grounds Maintenance,PKS16,External Contractor & Operator,742,200,PHS Ltd T/A Matta Products (UK),145081,07/06/2018,10259210,CS,542951438,770813,542951438,PI,2460,25/04/2018
Environment and Public Realm,Parks,PKS00,Maintenance of Equipment,301,2220,PHS Ltd T/A Matta Products (UK),145081,07/06/2018,10259211,CS,542951438,770813,542951438,PI,2664,25/04/2018
Environment and Public Realm,Domestic Waste Collection/Recycling,REF00,Training fees,11,199,Keith Cook Training Services,145120,28/06/2018,10260990,TC,706187730,7059714,706 1877 30,PI,955.2,22/06/2018
Environment and Public Realm,Street Cleansing General,STC00,Training fees,11,597,Keith Cook Training Services,145120,28/06/2018,10260990,TC,706187730,7059714,706 1877 30,PI,955.2,22/06/2018
Capital Housing Revenue Account,Biart Place - Capital,BIA00,Capital Compensation Payments,5010,1500,Personal Redacted Data,146079,07/06/2018,10260493,NT,,,,PN,1500,05/06/2018
Corporate Resources,Corporate Property R&M,CPA01,R&M External Contractors,100,508.2,Stanair Industrial Services Ltd,146499,21/06/2018,10260675,CS,,,,PN,609.84,15/06/2018
Housing Revenue Account,Sheltered Housing,AGP00,Electricity,130,192.34,Total Gas & Power Ltd,146631,28/06/2018,10260876,TC,689638949,2172239,689638949,PN,10242.48,19/06/2018
Housing Revenue Account,Alfred Green Close AP,AGP01,Electricity,130,232.14,Total Gas & Power Ltd,146631,28/06/2018,10260876,TC,689638949,2172239,689638949,PN,10242.48,19/06/2018
Housing Revenue Account,Avon Court AP,AGP02,Electricity,130,198.57,Total Gas & Power Ltd,146631,28/06/2018,10260876,TC,689638949,2172239,689638949,PN,10242.48,19/06/2018
Housing Revenue Account,Dickinson Court AP,AGP03,Electricity,130,360.73,Total Gas & Power Ltd,146631,28/06/2018,10260876,TC,689638949,2172239,689638949,PN,10242.48,19/06/2018
Housing Revenue Account,Duffy Place AP,AGP04,Electricity,130,186.48,Total Gas & Power Ltd,146631,28/06/2018,10260876,TC,689638949,2172239,689638949,PN,10242.48,19/06/2018
Housing Revenue Account,Frederick Press Way AP,AGP06,Electricity,130,430.31,Total Gas & Power Ltd,146631,28/06/2018,10260876,TC,689638949,2172239,689638949,PN,10242.48,19/06/2018
Housing Revenue Account,John Thwaites Close AP,AGP08,Electricity,130,81.42,Total Gas & Power Ltd,146631,28/06/2018,10260876,TC,689638949,2172239,689638949,PN,10242.48,19/06/2018
Housing Revenue Account,Mercer Court AP,AGP09,Electricity,130,212.07,Total Gas & Power Ltd,146631,28/06/2018,10260876,TC,689638949,2172239,689638949,PN,10242.48,19/06/2018
Housing Revenue Account,Pettiver Crescent I AP,AGP10,Electricity,130,203.66,Total Gas & Power Ltd,146631,28/06/2018,10260876,TC,689638949,2172239,689638949,PN,10242.48,19/06/2018
Housing Revenue Account,Robotham Close AP,AGP11,Electricity,130,226.24,Total Gas & Power Ltd,146631,28/06/2018,10260876,TC,689638949,2172239,689638949,PN,10242.48,19/06/2018
Housing Revenue Account,Stacey Court AP,AGP12,Electricity,130,57.85,Total Gas & Power Ltd,146631,28/06/2018,10260876,TC,689638949,2172239,689638949,PN,10242.48,19/06/2018
Housing Revenue Account,Stretton Court AP,AGP13,Electricity,130,90.45,Total Gas & Power Ltd,146631,28/06/2018,10260876,TC,689638949,2172239,689638949,PN,10242.48,19/06/2018
Housing Revenue Account,Sun Street/Windsor Street AP,AGP14,Electricity,130,210.43,Total Gas & Power Ltd,146631,28/06/2018,10260876,TC,689638949,2172239,689638949,PN,10242.48,19/06/2018
Housing Revenue Account,Lesley Souter House AP,AGP16,Electricity,130,477.88,Total Gas & Power Ltd,146631,28/06/2018,10260876,TC,689638949,2172239,689638949,PN,10242.48,19/06/2018
Housing Revenue Account,Tanser Court AP,AGP17,Electricity,130,388.59,Total Gas & Power Ltd,146631,28/06/2018,10260876,TC,689638949,2172239,689638949,PN,10242.48,19/06/2018
Housing Revenue Account,Edward Court AP,AGP19,Electricity,130,213.04,Total Gas & Power Ltd,146631,28/06/2018,10260876,TC,689638949,2172239,689638949,PN,10242.48,19/06/2018
Housing Revenue Account,Albert Square AP,AGP20,Electricity,130,625.52,Total Gas & Power Ltd,146631,28/06/2018,10260876,TC,689638949,2172239,689638949,PN,10242.48,19/06/2018
Housing Revenue Account,Eliot Court AP,AGP25,Electricity,130,82.4,Total Gas & Power Ltd,146631,28/06/2018,10260876,TC,689638949,2172239,689638949,PN,10242.48,19/06/2018
Housing Revenue Account,Clare Court Site,AGP27,Electricity,130,28.34,Total Gas & Power Ltd,146631,28/06/2018,10260876,TC,689638949,2172239,689638949,PN,10242.48,19/06/2018
Housing Revenue Account,Alexandra/James Court AP,AGP30,Electricity,130,136.98,Total Gas & Power Ltd,146631,28/06/2018,10260876,TC,689638949,2172239,689638949,PN,10242.48,19/06/2018
Housing Revenue Account,Hirst Close AP,AGP33,Electricity,130,71.19,Total Gas & Power Ltd,146631,28/06/2018,10260876,TC,689638949,2172239,689638949,PN,10242.48,19/06/2018
Housing Revenue Account,Assheton Close AP,AGP36,Electricity,130,44.86,Total Gas & Power Ltd,146631,28/06/2018,10260876,TC,689638949,2172239,689638949,PN,10242.48,19/06/2018
Housing Revenue Account,Bennett Court/Warwick Road AP,AGP38,Electricity,130,35.45,Total Gas & Power Ltd,146631,28/06/2018,10260876,TC,689638949,2172239,689638949,PN,10242.48,19/06/2018
Housing Revenue Account,Brookside Pailton AP,AGP40,Electricity,130,50.58,Total Gas & Power Ltd,146631,28/06/2018,10260876,TC,689638949,2172239,689638949,PN,10242.48,19/06/2018
Housing Revenue Account,Clifton Road AP,AGP41,Electricity,130,18.39,Total Gas & Power Ltd,146631,28/06/2018,10260876,TC,689638949,2172239,689638949,PN,10242.48,19/06/2018
Housing Revenue Account,Deepmore Road/Lytham Road AP,AGP42,Electricity,130,145.44,Total Gas & Power Ltd,146631,28/06/2018,10260876,TC,689638949,2172239,689638949,PN,10242.48,19/06/2018
Housing Revenue Account,Edmondson Close Dunchurch AP,AGP44,Electricity,130,135.15,Total Gas & Power Ltd,146631,28/06/2018,10260876,TC,689638949,2172239,689638949,PN,10242.48,19/06/2018
Housing Revenue Account,Featherbed Lane I AP,AGP45,Electricity,130,164.04,Total Gas & Power Ltd,146631,28/06/2018,10260876,TC,689638949,2172239,689638949,PN,10242.48,19/06/2018
Housing Revenue Account,Fox Close AP,AGP47,Electricity,130,43.4,Total Gas & Power Ltd,146631,28/06/2018,10260876,TC,689638949,2172239,689638949,PN,10242.48,19/06/2018
Housing Revenue Account,Great Balance Brinklow AP,AGP48,Electricity,130,23.76,Total Gas & Power Ltd,146631,28/06/2018,10260876,TC,689638949,2172239,689638949,PN,10242.48,19/06/2018
Housing Revenue Account,Harold Cox Place AP,AGP51,Electricity,130,61.77,Total Gas & Power Ltd,146631,28/06/2018,10260876,TC,689638949,2172239,689638949,PN,10242.48,19/06/2018
Housing Revenue Account,Jackson Road I AP,AGP53,Electricity,130,24.72,Total Gas & Power Ltd,146631,28/06/2018,10260876,TC,689638949,2172239,689638949,PN,10242.48,19/06/2018
Housing Revenue Account,Lever Road I AP,AGP57,Electricity,130,136.02,Total Gas & Power Ltd,146631,28/06/2018,10260876,TC,689638949,2172239,689638949,PN,10242.48,19/06/2018
Housing Revenue Account,Meadow Way/Primrose Court AP,AGP58,Electricity,130,86.24,Total Gas & Power Ltd,146631,28/06/2018,10260876,TC,689638949,2172239,689638949,PN,10242.48,19/06/2018
Housing Revenue Account,Norman Road AP,AGP60,Electricity,130,10.14,Total Gas & Power Ltd,146631,28/06/2018,10260876,TC,689638949,2172239,689638949,PN,10242.48,19/06/2018
Housing Revenue Account,Patterdale AP,AGP61,Electricity,130,23.64,Total Gas & Power Ltd,146631,28/06/2018,10260876,TC,689638949,2172239,689638949,PN,10242.48,19/06/2018
Housing Revenue Account,The Kent AP,AGP67,Electricity,130,48.13,Total Gas & Power Ltd,146631,28/06/2018,10260876,TC,689638949,2172239,689638949,PN,10242.48,19/06/2018
Housing Revenue Account,Victoria Street/Lawford Road AP,AGP68,Electricity,130,12.89,Total Gas & Power Ltd,146631,28/06/2018,10260876,TC,689638949,2172239,689638949,PN,10242.48,19/06/2018
Housing Revenue Account,Parkfield Road/Lea Crescent AP,AGP71,Electricity,130,144.36,Total Gas & Power Ltd,146631,28/06/2018,10260876,TC,689638949,2172239,689638949,PN,10242.48,19/06/2018
Housing Revenue Account,Pennington Street/Round Street AP,AGP72,Electricity,130,88.3,Total Gas & Power Ltd,146631,28/06/2018,10260876,TC,689638949,2172239,689638949,PN,10242.48,19/06/2018
Housing Revenue Account,Control Centre CCTV,CCE01,Electricity,130,473.16,Total Gas & Power Ltd,146631,28/06/2018,10260876,TC,689638949,2172239,689638949,PN,10242.48,19/06/2018
Housing Revenue Account,Supervision and Management General,MAN00,Electricity,130,154.97,Total Gas & Power Ltd,146631,28/06/2018,10260876,TC,689638949,2172239,689638949,PN,10242.48,19/06/2018
Housing Revenue Account,Multi-Storey Flats,MSF00,Electricity,130,2531.37,Total Gas & Power Ltd,146631,28/06/2018,10260876,TC,689638949,2172239,689638949,PN,10242.48,19/06/2018
Communities and Homes,Woodside Park,TVR00,Electricity,130,359.46,Total Gas & Power Ltd,146631,28/06/2018,10260876,TC,689638949,2172239,689638949,PN,10242.48,19/06/2018
Corporate Resources,Corporate Property Central Utilities,CPA02,Electricity,130,1261.69,Total Gas & Power Ltd,146631,28/06/2018,10260877,TC,689638949,2172239,689638949,PN,1440.64,20/06/2018
Corporate Resources,Corporate Property Central Utilities,CPA02,Electricity,130,12955.23,Total Gas & Power Ltd,146631,28/06/2018,10260878,TC,689638949,2172239,689638949,PN,17260.71,20/06/2018
Environment and Public Realm,Crematorium,CRM00,Electricity,130,1207.03,Total Gas & Power Ltd,146631,28/06/2018,10260878,TC,689638949,2172239,689638949,PN,17260.71,20/06/2018
Housing Revenue Account,Unplanned Maintenance and Repair,UMR00,Electricity,130,196.5,Total Gas & Power Ltd,146631,28/06/2018,10260878,TC,689638949,2172239,689638949,PN,17260.71,20/06/2018
Environment and Public Realm,WSU Depot,WDP00,Electricity,130,43.37,Total Gas & Power Ltd,146631,28/06/2018,10260878,TC,689638949,2172239,689638949,PN,17260.71,20/06/2018
Environment and Public Realm,WSU Depot,WDP00,Maintenance of Equipment,301,1595,Weightron Bilanciai Limited,146759,21/06/2018,10257322,TC,458223052,,458223052,PN,1914,01/03/2018
Corporate Resources,Retired Employees,RET00,Employers' Superannuation Contribution,2,25916.67,WCC Pension Fund,146914,07/06/2018,10260396,NT,,,,PN,25916.67,01/06/2018
Corporate Resources,Retired Employees,RET00,Additional Pension Payments,14,9492,WCC Pension Fund,146914,07/06/2018,10260448,NT,,,,PN,9492,04/06/2018
Corporate Resources,General Financial Services,GFS00,External Contractor & Operator,742,1343,WCC Pension Fund,146914,14/06/2018,10260582,NT,,,,PN,1343,08/06/2018
Growth and Investment,On Track,LSD04,Development Activities,450,541,Leicester Outdoor Pursuits Centre,147096,28/06/2018,10260970,TC,,,,PN,541,21/06/2018
Corporate Resources,Corporate Property R&M,CPA01,R&M External Contractors,100,1016,Gilgen Door Systems,147135,21/06/2018,10260741,TC,,,,PN,1219.2,18/06/2018
Environment and Public Realm,Domestic Waste Collection/Recycling,REF00,External Contractor & Operator,742,680,James Baxter Haulage Ltd,147159,07/06/2018,10260355,TC,620070986,,620070986,PN,816,01/06/2018
Environment and Public Realm,Domestic Waste Collection/Recycling,REF00,External Contractor & Operator,742,850,James Baxter Haulage Ltd,147159,07/06/2018,10260366,TC,620070986,,620070986,PN,1020,01/06/2018
Environment and Public Realm,Domestic Waste Collection/Recycling,REF00,External Contractor & Operator,742,510,James Baxter Haulage Ltd,147159,28/06/2018,10260805,TC,620070986,,620070986,PN,612,19/06/2018
Environment and Public Realm,Domestic Waste Collection/Recycling,REF00,External Contractor & Operator,742,680,James Baxter Haulage Ltd,147159,28/06/2018,10260806,TC,620070986,,620070986,PN,816,19/06/2018
Environment and Public Realm,Domestic Waste Collection/Recycling,REF00,External Contractor & Operator,742,510,James Baxter Haulage Ltd,147159,28/06/2018,10260977,TC,620070986,,620070986,PN,612,21/06/2018
Corporate Resources,Corporate Property R&M,CPA01,R&M External Contractors,100,453,AirTech Controls Ltd,147262,07/06/2018,10260301,TC,670991601,3262605,670991601,PI,543.6,31/05/2018
Corporate Resources,Corporate Property R&M,CPA01,R&M External Contractors,100,448.4,Condair plc,147263,21/06/2018,10260738,CS,358496894,358496894,358496894,PN,538.08,18/06/2018
Environment and Public Realm,Parks,PKS00,External Contractor & Operator,742,4820,R Jones & Co,147269,28/06/2018,10260855,TC,,,,PI,4820,19/06/2018
Corporate Resources,Corporate Property R&M,CPA01,R&M External Contractors,100,8559,Arden Construction Ltd,147430,21/06/2018,10260536,CS,589378956,2722631,589378956,PI,10270.8,06/06/2018
Capital Housing Revenue Account,Biart Place - Capital,BIA00,Capital Compensation Payments,5010,5608.55,Personal Redacted Data,147626,28/06/2018,10260954,NT,,,,PN,5608.55,21/06/2018
Environment and Public Realm,Grounds Maintenance,PKS20,Vehicle Repair and Maintenance,200,1291.4,Tallis Amos Group Limited,147758,07/06/2018,10259545,TC,377274127,,377274127,PN,1549.68,08/05/2018
Environment and Public Realm,Grounds Maintenance,PKS20,Vehicle Repair and Maintenance,200,714.6,Tallis Amos Group Limited,147758,07/06/2018,10260392,TC,377274127,,377274127,PN,855.52,01/06/2018
Environment and Public Realm,Parks,PKS00,External Contractor & Operator,742,551.66,PPL PRS,147770,07/06/2018,10258725,TC,,,,PI,661.99,11/04/2018
Communities and Homes,ITC & Support Services,CIS10,Training fees,11,1596,Quanta Training Ltd,147905,21/06/2018,10260865,TC,,4855330,,PI,1915.2,19/06/2018
Capital Housing Revenue Account,Biart Place - Capital,BIA00,Capital Compensation Payments,5010,1500,Personal Redacted Data,147973,14/06/2018,10260572,NT,,,,PN,1500,08/06/2018
Executive Director Office,Electoral Services,ELC00,Training fees,11,3176.55,Idox Information Solutions Ltd,148001,07/06/2018,10260306,TC,766800804,6706798,766800804,PI,3811.86,31/05/2018
Capital Housing Revenue Account,Disabled Adaptations,HCR01,Capital Contract Payments,5000,1654.1,Western Power Distribution,148103,28/06/2018,10261064,CS,664361920,2366984,664361920,PN,1984.92,25/06/2018
Environment and Public Realm,Crematorium,CRM00,Recruitment Expenses,12,22,Team Prevent UK Ltd,148151,28/06/2018,10260969,TC,883064608,,883064608,PN,1159,21/06/2018
Executive Director Office,Democratic Services,DEM10,Recruitment Expenses,12,22,Team Prevent UK Ltd,148151,28/06/2018,10260969,TC,883064608,,883064608,PN,1159,21/06/2018
Growth and Investment,Planning General/Income,PLN00,Recruitment Expenses,12,22,Team Prevent UK Ltd,148151,28/06/2018,10260969,TC,883064608,,883064608,PN,1159,21/06/2018
Environment and Public Realm,Domestic Waste Collection/Recycling,REF00,Recruitment Expenses,12,88,Team Prevent UK Ltd,148151,28/06/2018,10260969,TC,883064608,,883064608,PN,1159,21/06/2018
Environment and Public Realm,Regulatory Services,REG00,Recruitment Expenses,12,22,Team Prevent UK Ltd,148151,28/06/2018,10260969,TC,883064608,,883064608,PN,1159,21/06/2018
Housing Revenue Account,Unplanned Maintenance and Repair,UMR00,Recruitment Expenses,12,44,Team Prevent UK Ltd,148151,28/06/2018,10260969,TC,883064608,,883064608,PN,1159,21/06/2018
Growth and Investment,The Benn Hall,BHL00,Employee wellbeing/Other employee expenses,21,22,Team Prevent UK Ltd,148151,28/06/2018,10260969,TC,883064608,,883064608,PN,1159,21/06/2018
Communities and Homes,CAST - Private Sector Leasing,CAS03,Employee wellbeing/Other employee expenses,21,129,Team Prevent UK Ltd,148151,28/06/2018,10260969,TC,883064608,,883064608,PN,1159,21/06/2018
Executive Director Office,Democratic Services,DEM10,Employee wellbeing/Other employee expenses,21,22,Team Prevent UK Ltd,148151,28/06/2018,10260969,TC,883064608,,883064608,PN,1159,21/06/2018
Environment and Public Realm,Grounds Maintenance,PKS20,Employee wellbeing/Other employee expenses,21,91,Team Prevent UK Ltd,148151,28/06/2018,10260969,TC,883064608,,883064608,PN,1159,21/06/2018
Growth and Investment,Planning General/Income,PLN00,Employee wellbeing/Other employee expenses,21,22,Team Prevent UK Ltd,148151,28/06/2018,10260969,TC,883064608,,883064608,PN,1159,21/06/2018
Environment and Public Realm,Domestic Waste Collection/Recycling,REF00,Employee wellbeing/Other employee expenses,21,358,Team Prevent UK Ltd,148151,28/06/2018,10260969,TC,883064608,,883064608,PN,1159,21/06/2018
Environment and Public Realm,Household Green Waste Collections,REF06,Employee wellbeing/Other employee expenses,21,91,Team Prevent UK Ltd,148151,28/06/2018,10260969,TC,883064608,,883064608,PN,1159,21/06/2018
Environment and Public Realm,Street Cleansing General,STC00,Employee wellbeing/Other employee expenses,21,182,Team Prevent UK Ltd,148151,28/06/2018,10260969,TC,883064608,,883064608,PN,1159,21/06/2018
Housing Revenue Account,Unplanned Maintenance and Repair,UMR00,Employee wellbeing/Other employee expenses,21,22,Team Prevent UK Ltd,148151,28/06/2018,10260969,TC,883064608,,883064608,PN,1159,21/06/2018
Growth and Investment,Visitor Centre,VSC00,Purchases for Resale,305,1561.16,My World,148412,07/06/2018,10260460,TC,877829257,2059675,877829257,PI,1873.39,05/06/2018
Environment and Public Realm,Parks,PKS00,R&M External Contractors,100,2280,J P Landscapes & Construction Ltd,148502,28/06/2018,10260993,CS,844237818,4840565,844 2378 18,PI,2736,22/06/2018
Capital Housing Revenue Account,Biart Place - Capital,BIA00,Capital Compensation Payments,5010,1500,Personal Redacted Data,148518,14/06/2018,10260667,NT,,,,PN,1500,13/06/2018
Housing Revenue Account,Gas Heating Systems,UMR01,R&M External Contractors,100,28339.67,Robert Heath Heating Ltd,148858,14/06/2018,10260652,CS,927490989,1773699,927 4909 89,PN,34007.6,12/06/2018
Housing Revenue Account,Gas Heating Systems,UMR01,R&M External Contractors,100,3715.48,Robert Heath Heating Ltd,148858,14/06/2018,10260653,CS,927490989,1773699,927 4909 89,PN,5497.8,12/06/2018
Housing Revenue Account,Repairs and Maintenance - Void works,UMR09,R&M External Contractors,100,676.49,Robert Heath Heating Ltd,148858,14/06/2018,10260653,CS,927490989,1773699,927 4909 89,PN,5497.8,12/06/2018
Housing Revenue Account,Repairs and Maintenance - rechargeable works,UMR20,R&M External Contractors,100,157.32,Robert Heath Heating Ltd,148858,14/06/2018,10260653,CS,927490989,1773699,927 4909 89,PN,5497.8,12/06/2018
Capital Housing Revenue Account,Disabled Adaptations,HCR01,Capital Contract Payments,5000,32.21,Robert Heath Heating Ltd,148858,14/06/2018,10260653,CS,927490989,1773699,927 4909 89,PN,5497.8,12/06/2018
Communities and Homes,CAST - Private Sector Leasing,CAS03,Building cleaning,170,1002.96,Solutions Services,148937,07/06/2018,10260311,TC,831753431,,831753431,PN,1203.55,31/05/2018
Growth and Investment,Gypsy and Traveller Enforcement,PLN10,External Legal Costs,741,822,The Bailiff Company T/A Civil Enforcement Agents Ltd,149091,21/06/2018,10260503,TC,161886678,8436050,161886678,PN,986.4,05/06/2018
Housing Revenue Account,Repairs and Maintenance - Void works,UMR09,R&M External Contractors,100,360,Elite Surveyors Ltd,149107,21/06/2018,10260644,TC,924012466,6435692,924012466,PN,720,11/06/2018
Housing Revenue Account,Miscellaneous Unplanned Maintenance and Repair,UMR17,R&M External Contractors,100,40,Elite Surveyors Ltd,149107,21/06/2018,10260644,TC,924012466,6435692,924012466,PN,720,11/06/2018
Housing Revenue Account,Voids & Allocations Team,MAN24,External Contractor & Operator,742,200,Elite Surveyors Ltd,149107,21/06/2018,10260644,TC,924012466,6435692,924012466,PN,720,11/06/2018
Environment and Public Realm,Safety and Resilience,EPL00,Maintenance of Equipment,301,693,Cirrus Research plc,149128,28/06/2018,10260455,TC,316877724,987160,316877724,PI,831.6,04/06/2018
Corporate Resources,Corporate Property R&M,CPA01,R&M External Contractors,100,2275,Arden Health and Safety,149273,21/06/2018,10260670,TC,,,,PN,2730,15/06/2018
Corporate Resources,Corporate Property R&M,CPA01,R&M External Contractors,100,635,Arden Health and Safety,149273,21/06/2018,10260671,TC,,,,PN,762,15/06/2018
Environment and Public Realm,Garage,WVR00,Materials,303,737.52,Tom Tom International BV,149311,28/06/2018,10260960,TC,273433560,,273433560,PN,885.02,21/06/2018
Housing Revenue Account,Control Centre CCTV,CCE01,Maintenance of Equipment,301,2666.66,Close Circuit Security Services Ltd,149426,07/06/2018,10260424,TC,695360895,3543850,695360895,PN,3199.99,04/06/2018
Growth and Investment,Economic Development General,ECD00,Development Activities,450,20000,Coventry & Warwickshire Local Enterprise Partnership Ltd,149525,07/06/2018,10258711,TC,920462744,8210423,920462744,PN,20000,11/04/2018
Capital Housing Revenue Account,Heating Upgrades,HIM01,Capital Contract Payments,5000,6116.4,PTS Rugby,149845,28/06/2018,10260838,TC,408556737,,408556737,PN,7339.68,19/06/2018
Capital Housing Revenue Account,Heating Upgrades,HIM01,Capital Contract Payments,5000,3058.2,PTS Rugby,149845,28/06/2018,10260839,TC,408556737,,408556737,PN,3669.84,19/06/2018
Capital Housing Revenue Account,Heating Upgrades,HIM01,Capital Contract Payments,5000,2038.8,PTS Rugby,149845,28/06/2018,10260840,TC,408556737,,408556737,PN,2446.56,19/06/2018
Capital Housing Revenue Account,Heating Upgrades,HIM01,Capital Contract Payments,5000,1019.4,PTS Rugby,149845,28/06/2018,10260841,TC,408556737,,408556737,PN,1223.28,19/06/2018
Capital Housing Revenue Account,Heating Upgrades,HIM01,Capital Contract Payments,5000,3058.2,PTS Rugby,149845,28/06/2018,10260842,TC,408556737,,408556737,PN,3669.84,19/06/2018
Capital Housing Revenue Account,Heating Upgrades,HIM01,Capital Contract Payments,5000,1708.58,PTS Rugby,149845,28/06/2018,10260843,TC,408556737,,408556737,PN,2050.3,19/06/2018
Environment and Public Realm,Crematorium,CRM00,Consultancy Costs,740,720,Peter Linsell Management Consultants,149849,21/06/2018,10260837,TC,925694000,,925694000,PN,720,19/06/2018
Capital Housing Revenue Account,Biart Place - Capital,BIA00,Capital Compensation Payments,5010,1750,Personal Redacted Data,149959,14/06/2018,10260546,NT,,,,PN,1750,07/06/2018
Corporate Resources,General Financial Services,GFS00,Consultancy Costs,740,3750,Link Treasury Services Ltd,150056,07/06/2018,10260148,TC,2652033,,2652033,PN,4500,24/05/2018
Environment and Public Realm,Street Cleansing General,STC00,Vehicle Repair and Maintenance,200,1077.82,Tennant UK Cleaning Solutions Ltd,150101,28/06/2018,10260847,TC,,,,PN,1293.38,19/06/2018
Environment and Public Realm,Safety and Resilience,EPL00,Maintenance of Equipment,301,745,HAV Control Ltd,150176,28/06/2018,10260980,TC,9861205078,7173589,9861205078,PN,894,21/06/2018
Environment and Public Realm,Crematorium,CRM00,Purchases for Resale,305,464,Eternity Crystal LLP,150308,07/06/2018,10260304,TC,,OC333679,,PI,556.8,31/05/2018
Communities and Homes,Community Advice & Support Team,CAS00,Other Miscellaneous Expenses,444,750,Boughton Removals,150311,07/06/2018,10260515,TC,,,,PN,750,06/06/2018
Communities and Homes,Community Advice & Support Team,CAS00,Other Miscellaneous Expenses,444,500,Boughton Removals,150311,07/06/2018,10260534,TC,,,,PN,500,06/06/2018
Environment and Public Realm,Crematorium,CRM00,R&M External Contractors,100,654.96,Re-Carb Engineering Ltd,150324,28/06/2018,10260946,TC,176214314,8776799,176214314,PN,785.95,21/06/2018
Corporate Resources,Corporate Assurance,RES40,Consultancy Costs,740,4700,TIAA,150337,07/06/2018,10259739,TC,792453014,,792453014,PN,5640,14/05/2018
Corporate Resources,Corporate Assurance,RES40,Consultancy Costs,740,3150,TIAA,150337,28/06/2018,10260988,TC,792453014,,792453014,PI,3780,22/06/2018
Communities and Homes,Ash Project,CAS05,Grants,420,13000,Doorway,150386,21/06/2018,10260700,TC,,,,PN,13000,18/06/2018
Housing Revenue Account,Supervision and Management General,MAN00,External Contractor & Operator,742,1030,Electronic Business Systems,150902,21/06/2018,10260598,TC,,,,PN,1236,08/06/2018
Housing Revenue Account,Supervision and Management General,MAN00,External Contractor & Operator,742,2575,Electronic Business Systems,150902,21/06/2018,10260599,TC,,,,PN,3090,08/06/2018
Capital Housing Revenue Account,Purchase of Council Houses,PUR00,Capital Contract Payments,5000,5200,HMRC Shipley,150936,28/06/2018,10261050,NT,,,,PN,5200,25/06/2018
Housing Revenue Account,Lift maintenance,UMR14,R&M External Contractors,100,2655,Lift & Engineering Services Ltd,150984,07/06/2018,10260435,TC,377355519,1913516,377355519,PN,3186,04/06/2018
Communities and Homes,CL Grants,CGS00,Grants To Voluntary Organisations,720,1301.01,Long Lawford Methodist Church,151019,07/06/2018,10260420,NT,,,,PN,1301.01,04/06/2018
Environment and Public Realm,Grounds Maintenance,PKS20,External Contractor & Operator,742,5900,Glendale Grounds Management Ltd,151025,07/06/2018,10260267,TC,203324952,,203324952,PN,7080,31/05/2018
Communities and Homes,Maintenance of Customer Services Systems,CIS21,Software Purchase,373,7500,Metacompliance Ltd,151157,21/06/2018,10259875,TC,854066617,NI049166,854066617,PI,9000,16/05/2018
Communities and Homes,Maintenance of Customer Services Systems,CIS21,Software Maintenance,374,3990,Metacompliance Ltd,151157,28/06/2018,10260864,TC,854066617,NI049166,854066617,PI,4788,19/06/2018
Housing Revenue Account,CAST - Private Sector Leasing,CAS03,Private Sector Leasing Scheme Properties,148,2175,Personal Redacted Data,151176,21/06/2018,10260810,TC,,,,PN,2175,19/06/2018
Housing Revenue Account,Laundry equipment maintenance,UMR15,R&M External Contractors,100,5564,JLA Ltd,151207,07/06/2018,10260132,TC,566894869,1094178,566894869,PN,6676.8,24/05/2018
Housing Revenue Account,Laundry equipment maintenance,UMR15,R&M External Contractors,100,2782,JLA Ltd,151207,07/06/2018,10260394,TC,566894869,1094178,566894869,PN,3338.4,01/06/2018
Growth and Investment,Art Gallery and Museum,AGM00,Childcare vouchers admin fee,7,9.72,Busy Bees Benefits Ltd,151230,07/06/2018,10260463,NT,,6758298,,PN,3871.59,05/06/2018
Corporate Resources,Council Tax and NNDR Collection,CTX01,Childcare vouchers admin fee,7,10.52,Busy Bees Benefits Ltd,151230,07/06/2018,10260463,NT,,6758298,,PN,3871.59,05/06/2018
Corporate Resources,Legal Services,DEM20,Childcare vouchers admin fee,7,9.09,Busy Bees Benefits Ltd,151230,07/06/2018,10260463,NT,,6758298,,PN,3871.59,05/06/2018
Growth and Investment,Economic Development General,ECD00,Childcare vouchers admin fee,7,0.8,Busy Bees Benefits Ltd,151230,07/06/2018,10260463,NT,,6758298,,PN,3871.59,05/06/2018
Communities and Homes,WTHEIP - Warwickshire Together Homelessness Early Intervention Project,HIP00,Childcare vouchers admin fee,7,9.72,Busy Bees Benefits Ltd,151230,07/06/2018,10260463,NT,,6758298,,PN,3871.59,05/06/2018
Environment and Public Realm,Licencing,LIC00,Childcare vouchers admin fee,7,3.2,Busy Bees Benefits Ltd,151230,07/06/2018,10260463,NT,,6758298,,PN,3871.59,05/06/2018
Growth and Investment,Sports and Recreation,LSD03,Childcare vouchers admin fee,7,8.4,Busy Bees Benefits Ltd,151230,07/06/2018,10260463,NT,,6758298,,PN,3871.59,05/06/2018
Housing Revenue Account,Estate Management,MAN22,Childcare vouchers admin fee,7,9.72,Busy Bees Benefits Ltd,151230,07/06/2018,10260463,NT,,6758298,,PN,3871.59,05/06/2018
Housing Revenue Account,Voids & Allocations Team,MAN24,Childcare vouchers admin fee,7,4.76,Busy Bees Benefits Ltd,151230,07/06/2018,10260463,NT,,6758298,,PN,3871.59,05/06/2018
Growth and Investment,Planning General/Income,PLN00,Childcare vouchers admin fee,7,14.52,Busy Bees Benefits Ltd,151230,07/06/2018,10260463,NT,,6758298,,PN,3871.59,05/06/2018
Environment and Public Realm,Domestic Waste Collection/Recycling,REF00,Childcare vouchers admin fee,7,1,Busy Bees Benefits Ltd,151230,07/06/2018,10260463,NT,,6758298,,PN,3871.59,05/06/2018
Environment and Public Realm,Regulatory Services,REG00,Childcare vouchers admin fee,7,19.44,Busy Bees Benefits Ltd,151230,07/06/2018,10260463,NT,,6758298,,PN,3871.59,05/06/2018
Corporate Resources,Financial Services,RES10,Childcare vouchers admin fee,7,21.44,Busy Bees Benefits Ltd,151230,07/06/2018,10260463,NT,,6758298,,PN,3871.59,05/06/2018
Corporate Resources,Human Resources,RES30,Childcare vouchers admin fee,7,1.2,Busy Bees Benefits Ltd,151230,07/06/2018,10260463,NT,,6758298,,PN,3871.59,05/06/2018
Housing Revenue Account,Unplanned Maintenance and Repair,UMR00,Childcare vouchers admin fee,7,9.72,Busy Bees Benefits Ltd,151230,07/06/2018,10260463,NT,,6758298,,PN,3871.59,05/06/2018
Growth and Investment,Visitor Centre,VSC00,Childcare vouchers admin fee,7,4.8,Busy Bees Benefits Ltd,151230,07/06/2018,10260463,NT,,6758298,,PN,3871.59,05/06/2018
Environment and Public Realm,Trade Waste Collection,WWC01,Childcare vouchers admin fee,7,9.72,Busy Bees Benefits Ltd,151230,07/06/2018,10260463,NT,,6758298,,PN,3871.59,05/06/2018
Outside portfolio expenditure,User Balance Sheet Cost Centre,BSU,Revenue Section Agreements,9865,2589.96,Long Lawford PC Offsite Rec Maintenance,151232,21/06/2018,10260835,TC,,,,PN,2589.96,19/06/2018
Communities and Homes,Maintenance of Customer Services Systems,CIS21,Software Maintenance,374,840,K3 Retail Systems Group Ltd,151287,07/06/2018,10260284,TC,696356287,,696356287,PN,1008,31/05/2018
Communities and Homes,Maintenance of Customer Services Systems,CIS21,Software Maintenance,374,903.28,K3 Retail Systems Group Ltd,151287,07/06/2018,10260285,TC,696356287,,696356287,PN,1083.94,31/05/2018
Environment and Public Realm,Crime and Disorder Activities,CAD00,Development Activities,450,450,Buddi Ltd,151339,07/06/2018,10260397,TC,867696451,5308826,867696451,PI,540,01/06/2018
Communities and Homes,Broadband & internet,TEL01,Telephone Expenses,371,9634.23,HighSpeed Office Ltd,151543,21/06/2018,10260565,TC,766384980,3935705,766384980,PN,11561.08,08/06/2018
Growth and Investment,Planning General/Income,PLN00,Consultancy Costs,740,3431.41,Nigel Reeves Planning & Urban Design Ltd,151614,07/06/2018,10260416,TC,,,,PN,3431.41,04/06/2018
Growth and Investment,The Benn Hall,BHL00,Purchases for Resale,305,416.83,Drays Wholesale Limited,151618,07/06/2018,10260260,TC,128586875,,128586875,PN,500.2,31/05/2018
Growth and Investment,The Benn Hall,BHL00,Purchases for Resale,305,1234.42,Drays Wholesale Limited,151618,14/06/2018,10260567,TC,128586875,,128586875,PN,1481.3,08/06/2018
Growth and Investment,The Benn Hall,BHL00,Purchases for Resale,305,760.48,Drays Wholesale Limited,151618,28/06/2018,10261030,TC,128586875,,128586875,PN,912.58,25/06/2018
Environment and Public Realm,Whitehall Recreation Ground,LEI23,Capital Contract Payments,5000,4550,Design with Nature Ltd,151634,07/06/2018,10260302,TC,,8271753,,PI,4550,31/05/2018
Communities and Homes,Maintenance of Customer Services Systems,CIS21,Software Purchase,373,5541,We are BPR Ltd T/A We are Lean & Agile,151650,28/06/2018,10261054,TC,133641827,7853614,133641827,PI,6649.2,25/06/2018
Environment and Public Realm,Domestic Waste Collection/Recycling,REF00,Personal Protective Clothing,340,166.15,SMI Group UK,151681,07/06/2018,10259851,TC,217124496,7644080,217124496,PN,709.62,16/05/2018
Environment and Public Realm,Street Cleansing General,STC00,Personal Protective Clothing,340,85.2,SMI Group UK,151681,07/06/2018,10259851,TC,217124496,7644080,217124496,PN,709.62,16/05/2018
Environment and Public Realm,WSU Depot,WDP00,Personal Protective Clothing,340,340,SMI Group UK,151681,07/06/2018,10259851,TC,217124496,7644080,217124496,PN,709.62,16/05/2018
Communities and Homes,CAST - Private Sector Leasing,CAS03,Private Sector Leasing Scheme Properties,148,4650,Personal Redacted Data,151687,14/06/2018,10260637,TC,,,,PN,4650,11/06/2018
Communities and Homes,WTHEIP - Warwickshire Together Homelessness Early Intervention Project,HIP00,Payments to Other Local Authorities,710,2221.33,People Potential Possibilites T/A P3 Charity,151739,28/06/2018,10260610,TC,,2495423,,PI,2221.33,08/06/2018
Capital Housing Revenue Account,Heating Upgrades,HIM01,Capital Contract Payments,5000,27815.67,UK Gas Services Ltd,151764,28/06/2018,10260823,CS,974960175,2976617,974960175,PN,33378.8,19/06/2018
Housing Revenue Account,Control Centre (HRA),CCE00,New Equipment,300,1980,Tunstall Healthcare,151791,14/06/2018,10260606,TC,182879709,1332249,182879709,PI,2376,08/06/2018
Housing Revenue Account,Repairs and Maintenance - Void works,UMR09,R&M External Contractors,100,1380,Kingdom Service Group,151795,28/06/2018,10260659,CS,582329526,2795197,582329526,PN,1657.2,13/06/2018
Housing Revenue Account,Miscellaneous Unplanned Maintenance and Repair,UMR17,R&M External Contractors,100,1,Kingdom Service Group,151795,28/06/2018,10260659,CS,582329526,2795197,582329526,PN,1657.2,13/06/2018
Growth and Investment,Art Gallery and Museum,AGM00,Building cleaning,170,2343.75,Kingdom Service Group,151795,21/06/2018,10260800,CS,582329526,2795197,582329526,PN,37045.31,19/06/2018
Housing Revenue Account,Sheltered Housing,AGP00,Building cleaning,170,13090.67,Kingdom Service Group,151795,21/06/2018,10260800,CS,582329526,2795197,582329526,PN,37045.31,19/06/2018
Growth and Investment,The Benn Hall,BHL00,Building cleaning,170,1406.25,Kingdom Service Group,151795,21/06/2018,10260800,CS,582329526,2795197,582329526,PN,37045.31,19/06/2018
Communities and Homes,Community Advice & Support Team,CAS00,Building cleaning,170,124.29,Kingdom Service Group,151795,21/06/2018,10260800,CS,582329526,2795197,582329526,PN,37045.31,19/06/2018
Environment and Public Realm,Car Parks General,CPK01,Building cleaning,170,398,Kingdom Service Group,151795,21/06/2018,10260800,CS,582329526,2795197,582329526,PN,37045.31,19/06/2018
Environment and Public Realm,Crematorium,CRM00,Building cleaning,170,826,Kingdom Service Group,151795,21/06/2018,10260800,CS,582329526,2795197,582329526,PN,37045.31,19/06/2018
Housing Revenue Account,Estate Management,MAN22,Building cleaning,170,2819.57,Kingdom Service Group,151795,21/06/2018,10260800,CS,582329526,2795197,582329526,PN,37045.31,19/06/2018
Housing Revenue Account,Multi-Storey Flats,MSF00,Building cleaning,170,1584.56,Kingdom Service Group,151795,21/06/2018,10260800,CS,582329526,2795197,582329526,PN,37045.31,19/06/2018
Corporate Resources,Town Hall,OFF00,Building cleaning,170,4634.67,Kingdom Service Group,151795,21/06/2018,10260800,CS,582329526,2795197,582329526,PN,37045.31,19/06/2018
Environment and Public Realm,Parks,PKS00,Building cleaning,170,220.5,Kingdom Service Group,151795,21/06/2018,10260800,CS,582329526,2795197,582329526,PN,37045.31,19/06/2018
Housing Revenue Account,Unplanned Maintenance and Repair,UMR00,Building cleaning,170,486,Kingdom Service Group,151795,21/06/2018,10260800,CS,582329526,2795197,582329526,PN,37045.31,19/06/2018
Environment and Public Realm,WSU Depot,WDP00,Building cleaning,170,436.83,Kingdom Service Group,151795,21/06/2018,10260800,CS,582329526,2795197,582329526,PN,37045.31,19/06/2018
Environment and Public Realm,Town Centre Public Conveniences,PCS00,Toilet Cleaning,173,2500,Kingdom Service Group,151795,21/06/2018,10260800,CS,582329526,2795197,582329526,PN,37045.31,19/06/2018
Growth and Investment,Hall of Fame,TRY00,Publicity & Marketing,377,1538,JCDecaux UK Ltd - Rail,151817,21/06/2018,10260870,TC,539090043,1679670,539090043,PI,1845.6,19/06/2018
Capital Communities and Homes,ICT Renewal Programme,CMP00,IT Capital Expenditure,5025,1516.11,PCM Technology Solutions Ltd,151837,07/06/2018,10260295,TC,264198089,103216566,264198089,PI,1819.33,31/05/2018
Capital Communities and Homes,ICT Renewal Programme,CMP00,IT Capital Expenditure,5025,753.78,PCM Technology Solutions Ltd,151837,21/06/2018,10260297,TC,264198089,103216566,264198089,PI,904.54,31/05/2018
Capital Communities and Homes,ICT Renewal Programme,CMP00,IT Capital Expenditure,5025,11748.21,PCM Technology Solutions Ltd,151837,28/06/2018,10260818,TC,264198089,103216566,264198089,PI,14097.85,19/06/2018
Capital Housing Revenue Account,Housing Management System,HCE08,IT Capital Expenditure,5025,3150,Gravitas Recruitment Group,151921,21/06/2018,10260505,TC,974844372,6959984,974844372,PN,3780,06/06/2018
Capital Housing Revenue Account,Housing Management System,HCE08,IT Capital Expenditure,5025,4095,Gravitas Recruitment Group,151921,14/06/2018,10260600,TC,974844372,6959984,974844372,PN,4914,08/06/2018
Capital Housing Revenue Account,Housing Management System,HCE08,IT Capital Expenditure,5025,2835,Gravitas Recruitment Group,151921,21/06/2018,10260832,TC,974844372,6959984,974844372,PN,3402,19/06/2018
Corporate Resources,Human Resources Centralised Services,RES31,Training fees,11,1485,EQV (UK) Ltd,152002,21/06/2018,10260725,TC,566134831,,566134831,PN,1782,18/06/2018
Environment and Public Realm,Street Cleansing General,STC00,Materials,303,637.5,Hammonds Hygiene Solutions Ltd,152004,21/06/2018,10260603,TC,770138146,6143231,770138146,PI,765,08/06/2018
Communities and Homes,CAST - Private Sector Leasing,CAS03,Private Sector Leasing Scheme Properties,148,1425.06,DJ & J Hopkins,152010,14/06/2018,10260638,NT,,,,PN,1425.06,11/06/2018
Housing Revenue Account,Multi-Storey Flats,MSF00,Other Miscellaneous Expenses,444,3500,Propitas LLP,152023,28/06/2018,10260982,TC,935380416,OC331571,935380416,PI,4200,22/06/2018
Communities and Homes,CAST - Private Sector Leasing,CAS03,Private Sector Leasing Scheme Properties,148,2400,Personal Redacted Data,152030,21/06/2018,10260792,NT,,,,PN,2400,19/06/2018
Corporate Resources,Town Hall,OFF00,R&M External Contractors,100,1487.32,Record UK,152038,14/06/2018,10260602,TC,724106371,124392,724106371,PI,1784.78,08/06/2018
Corporate Resources,Corporate Property R&M,CPA01,R&M External Contractors,100,826.6,Record UK,152038,28/06/2018,10260952,TC,724106371,124392,724106371,PN,991.92,21/06/2018
Environment and Public Realm,Parks,PKS00,R&M External Contractors,100,2250,Independent Memorial Inspection,152048,07/06/2018,10258963,TC,829563689,,829563689,PI,2700,17/04/2018
Environment and Public Realm,Parks,PKS00,R&M External Contractors,100,1650,Independent Memorial Inspection,152048,07/06/2018,10258964,TC,829563689,,829563689,PI,1980,17/04/2018
Growth and Investment,Economic Development General,ECD00,Development Activities,450,10029,Coventry & Warwickshire Growth Hub Ltd,152052,07/06/2018,10258712,TC,237914782,9146585,237914782,PN,12034.8,11/04/2018
Growth and Investment,The Benn Hall,BHL00,Events Tickets - Zero Rated,1405,1834.92,Legacy Wrestling,152055,14/06/2018,10260639,TC,,,,PN,1834.92,11/06/2018
Capital Corporate Resources,Cattle Market Site,CMS00,Capital Contract Payments,5000,1475,BWB Consulting,152069,07/06/2018,10260360,TC,6484114245,5265863,6484114245,PN,1770,01/06/2018
Communities and Homes,Nightly Paid Self Contained Accommodation,CAS07,Nightly Self Contained Accommodation,149,4421,Centennial Property T/A The Housing Network,152075,07/06/2018,10260514,TC,,,,PN,4421,06/06/2018
Communities and Homes,Community Advice & Support Team,CAS00,Agency Staff,3,7104,Meritec limited,152076,07/06/2018,10260400,TC,675499571,3224622,675499571,PI,8524.8,01/06/2018
Capital Housing Revenue Account,Biart Place - Capital,BIA00,Capital Compensation Payments,5010,4273.26,Personal Redacted Data,152088,07/06/2018,10260268,NT,,,,PN,4273.26,31/05/2018
Capital Housing Revenue Account,Biart Place - Capital,BIA00,Capital Compensation Payments,5010,6001.53,Personal Redacted Data,152089,21/06/2018,10260689,NT,,,,PN,6001.53,18/06/2018
Capital Housing Revenue Account,Biart Place - Capital,BIA00,Capital Compensation Payments,5010,5697.6,Personal Redacted Data,152093,07/06/2018,10260269,NT,,,,PN,5697.6,31/05/2018
Capital Housing Revenue Account,Biart Place - Capital,BIA00,Capital Compensation Payments,5010,6095.4,Personal Redacted Data,152100,14/06/2018,10260663,NT,,,,PN,6095.4,13/06/2018
Capital Housing Revenue Account,Biart Place - Capital,BIA00,Capital Compensation Payments,5010,5700.24,Personal Redacted Data,152102,21/06/2018,10260690,NT,,,,PN,5700.24,18/06/2018
Capital Housing Revenue Account,Biart Place - Capital,BIA00,Capital Compensation Payments,5010,5682.6,Personal Redacted Data,152105,14/06/2018,10260661,NT,,,,PN,5682.6,13/06/2018
Capital Housing Revenue Account,Biart Place - Capital,BIA00,Capital Compensation Payments,5010,5746,Personal Redacted Data,152107,07/06/2018,10260408,NT,,,,PN,5746,04/06/2018
Capital Housing Revenue Account,Biart Place - Capital,BIA00,Capital Compensation Payments,5010,5265.19,Personal Redacted Data,152110,21/06/2018,10260686,NT,,,,PN,5265.19,18/06/2018
Capital Housing Revenue Account,Biart Place - Capital,BIA00,Capital Compensation Payments,5010,1750,Personal Redacted Data,152117,07/06/2018,10260290,NT,,,,PN,1750,31/05/2018
Capital Housing Revenue Account,Biart Place - Capital,BIA00,Capital Compensation Payments,5010,3900,Personal Redacted Data,152120,07/06/2018,10260308,NT,,,,PN,3900,31/05/2018
Capital Housing Revenue Account,Biart Place - Capital,BIA00,Capital Compensation Payments,5010,6100,Personal Redacted Data,152120,28/06/2018,10261095,NT,,,,PN,6100,27/06/2018
Capital Housing Revenue Account,Biart Place - Capital,BIA00,Capital Compensation Payments,5010,1750,Personal Redacted Data,152121,07/06/2018,10260309,NT,,,,PN,1750,31/05/2018
Capital Housing Revenue Account,Biart Place - Capital,BIA00,Capital Compensation Payments,5010,1750,Personal Redacted Data,152124,07/06/2018,10260421,NT,,,,PN,1750,04/06/2018
Capital Housing Revenue Account,Biart Place - Capital,BIA00,Capital Compensation Payments,5010,5768.16,Personal Redacted Data,152124,21/06/2018,10260833,NT,,,,PN,5768.16,19/06/2018
Capital Housing Revenue Account,Biart Place - Capital,BIA00,Capital Compensation Payments,5010,3166.31,Personal Redacted Data,152126,07/06/2018,10260428,NT,,,,PN,3166.31,04/06/2018
Capital Housing Revenue Account,Biart Place - Capital,BIA00,Capital Compensation Payments,5010,1500,Personal Redacted Data,152128,07/06/2018,10260492,NT,,,,PN,1500,05/06/2018
Communities and Homes,CAST - Private Sector Leasing,CAS03,Private Sector Leasing Scheme Properties,148,4800,Personal Redacted Data,152129,07/06/2018,10260488,NT,,,,PN,4800,05/06/2018
Growth and Investment,The Benn Hall,BHL00,Events Tickets - Zero Rated,1405,769.5,SONIA RAJ,152130,14/06/2018,10260535,NT,,,,PN,769.5,06/06/2018
Growth and Investment,Economic Development General,ECD00,Borough Local Plan,452,4777.5,WSP UK Ltd,152134,07/06/2018,10260523,TC,905054942,1383511,905054942,PN,5733,06/06/2018
Capital Housing Revenue Account,Biart Place - Capital,BIA00,Capital Compensation Payments,5010,1500,Personal Redacted Data,152139,14/06/2018,10260664,NT,,,,PN,1500,13/06/2018
Capital Housing Revenue Account,Biart Place - Capital,BIA00,Capital Compensation Payments,5010,1500,Personal Redacted Data,152140,14/06/2018,10260665,NT,,,,PN,1500,13/06/2018
Growth and Investment,Economic Development General,ECD00,Development Activities,450,2000,Coventry City of Culture Trust,152142,21/06/2018,10260773,TC,,9808960,,PN,2000,18/06/2018
Capital Housing Revenue Account,Biart Place - Capital,BIA00,Capital Compensation Payments,5010,1750,Personal Redacted Data,152147,21/06/2018,10260789,NT,,,,PN,1750,19/06/2018
Capital Housing Revenue Account,Biart Place - Capital,BIA00,Capital Compensation Payments,5010,1500,Personal Redacted Data,152148,21/06/2018,10260788,NT,,,,PN,1500,19/06/2018
Capital Housing Revenue Account,Biart Place - Capital,BIA00,Capital Compensation Payments,5010,1750,Personal Redacted Data,152149,21/06/2018,10260831,NT,,,,PN,1750,19/06/2018
Capital Housing Revenue Account,Biart Place - Capital,BIA00,Capital Compensation Payments,5010,3900,Personal Redacted Data,152150,21/06/2018,10260830,NT,,,,PN,3900,19/06/2018
Capital Housing Revenue Account,Biart Place - Capital,BIA00,Capital Compensation Payments,5010,1750,Personal Redacted Data,152151,21/06/2018,10260829,NT,,,,PN,1750,19/06/2018
Capital Housing Revenue Account,Biart Place - Capital,BIA00,Capital Compensation Payments,5010,1750,Personal Redacted Data,152154,21/06/2018,10260905,NT,,,,PN,1750,20/06/2018
Communities and Homes,ITC & Support Services,CIS10,Training fees,11,8000,Fast Lane Consulting & Education Services,152155,28/06/2018,10260981,TC,846900805,511186,846900805,PI,9600,22/06/2018
Capital Housing Revenue Account,Biart Place - Capital,BIA00,Capital Compensation Payments,5010,4867.38,Personal Redacted Data,152156,28/06/2018,10260938,NT,,,,PN,4867.38,21/06/2018
Environment and Public Realm,Parks,PKS00,Materials,303,980,Falcon House Project Management,152158,28/06/2018,10260941,TC,747780980,,747780980,PN,980,21/06/2018
Communities and Homes,CAST - Private Sector Leasing,CAS03,Private Sector Leasing Scheme Properties,148,2175,Personal Redacted Data,152159,28/06/2018,10260940,NT,,,,PN,2175,21/06/2018
Growth and Investment,AGM Exhibitions/Outreach,AGM02,Other Miscellaneous Expenses,444,775,Typestart Ltd,152162,28/06/2018,10261047,TC,811776036,4652789,811776036,PN,775,25/06/2018
Capital Housing Revenue Account,Biart Place - Capital,BIA00,Capital Compensation Payments,5010,1750,Mrs Martha Robson,152165,28/06/2018,10261098,NT,,,,PN,1750,27/06/2018
Capital Housing Revenue Account,Biart Place - Capital,BIA00,Capital Compensation Payments,5010,1750,Iochebet Dibu,152166,28/06/2018,10261093,NT,,,,PN,1750,27/06/2018
Capital Housing Revenue Account,Biart Place - Capital,BIA00,Capital Compensation Payments,5010,1750,Mr Alan Jaques,152167,28/06/2018,10261097,NT,,,,PN,1750,27/06/2018
Communities and Homes,Private Sector Leasing,CAS06,Homelessness Prevention,148,1300,Countrywide Residential,,07/06/2018,46407,,,,,,,
Communities and Homes,Private Sector Leasing,CAS06,Homelessness Prevention,148,2150,Amethyst Lettings,,08/06/2018,46411,,,,,,,
Capital Housing Revenue Account,Biart Place - Capital,BIA00,Capital Compensation Payments,5010,1646.21,Personal Redacted Data,,13/06/2018,46433,,,,,,,
Communities and Homes,Private Sector Leasing,CAS06,Homelessness Prevention,148,1250,Countrywide Residential,,14/06/2018,46444,,,,,,,
Communities and Homes,Private Sector Leasing,CAS06,Homelessness Prevention,148,3264,Personal Redacted Data,,15/06/2018,46449,,,,,,,
Communities and Homes,CAST - Bed & Breakfast,CAS01,Bed and Breakfast Temporary Accommodation,146,11406.25,Travelodge,,15/06/2018,46450,,,,,,,
Communities and Homes,CAST - Bed & Breakfast,CAS01,Bed and Breakfast Temporary Accommodation,146,4736.1,ACCOR,,15/06/2018,46451,,,,,,,
Housing Revenue Account,Supervision and Management General,MAN00,External Legal Costs,741,965,HMCTS,,18/06/2018,46469,,,,,,,
Outside portfolio expenditure,User Balance Sheet Cost Centre,BSU,Collection Fund,9476,434396,WCC County Fund,,19/06/2018,46482,,,,,,,
Outside portfolio expenditure,User Balance Sheet Cost Centre,BSU,Collection Fund,9476,2260595,DCLG,,19/06/2018,46480,,,,,,,
Communities and Homes,Private Sector Leasing,CAS06,Homelessness Prevention,148,572,Belvoir,,19/06/2018,46481,,,,,,,
Corporate Resources,General Financial Services,GFS00,Payment Card Costs,445,3814.16,Capita,,20/06/2018,46495,,,,,,,
Communities and Homes,ITC & Support Services,CIS21,Software Maintenance,374,679.78,Bottomline Technologies,,20/06/2018,46494,,,,,,,
Growth and Investment,Planning General/Income,PLN00,External Legal Costs,741,3839,Personal Redacted Data,,21/06/2018,46500,,,,,,,
Communities and Homes,Private Sector Leasing,CAS06,Homelessness Prevention,148,1600,Edward Knight Lettings,,26/06/2018,46522,,,,,,,
Outside portfolio expenditure,User Balance Sheet Cost Centre,BSU,Payroll Deductions,9251,11719.2,Inland Revenue,,27/06/2018,46527,,,,,,,
Communities and Homes,Private Sector Leasing,CAS06,Homelessness Prevention,148,1500,Lynn M Anderson Ltd,,27/06/2018,46528,,,,,,,
Communities and Homes,Private Sector Leasing,CAS06,Homelessness Prevention,148,1550,Belvoir,,28/06/2018,46538,,,,,,,
Communities and Homes,Biart Place - Capital,BIA00,Capital Compensation Payments,5010,3150,Tyrer & Hart Lettings,,28/06/2018,46536,,,,,,,
Communities and Homes,ITC & Support Services,CIS21,Software Maintenance,374,7550.7,Midland Software,,29/06/2018,46594,,,,,,,
Communities and Homes,CAST - Bed & Breakfast,CAS01,Bed and Breakfast Temporary Accommodation,146,460.83,The Carlton Hotel,,18/06/2018,46595,,,,,,,
Communities and Homes,CAST - Bed & Breakfast,CAS01,Bed and Breakfast Temporary Accommodation,146,460.83,The Carlton Hotel,,18/06/2018,46595,,,,,,,
Communities and Homes,CAST - Bed & Breakfast,CAS01,Bed and Breakfast Temporary Accommodation,146,460.83,The Carlton Hotel,,18/06/2018,46595,,,,,,,
Communities and Homes,CAST - Bed & Breakfast,CAS01,Bed and Breakfast Temporary Accommodation,146,460.83,The Carlton Hotel,,18/06/2018,46595,,,,,,,
Communities and Homes,CAST - Bed & Breakfast,CAS01,Bed and Breakfast Temporary Accommodation,146,460.83,The Carlton Hotel,,18/06/2018,46595,,,,,,,
Communities and Homes,CAST - Bed & Breakfast,CAS01,Bed and Breakfast Temporary Accommodation,146,460.83,The Carlton Hotel,,18/06/2018,46595,,,,,,,
Communities and Homes,CAST - Bed & Breakfast,CAS01,Bed and Breakfast Temporary Accommodation,146,460.83,The Carlton Hotel,,18/06/2018,46595,,,,,,,
Communities and Homes,CAST - Bed & Breakfast,CAS01,Bed and Breakfast Temporary Accommodation,146,460.83,The Carlton Hotel,,18/06/2018,46595,,,,,,,
Environment and Public Realm,Domestic Waste Collection/Recycling,REF00,Vehicle Running Costs,201,652.5,DVLA,,18/06/2018,46595,,,,,,,
